Cogmind - Beta 16.1 @@@ ROGUE MODE // 2026.03.15 @ 20:13:54 Player: AngelSpirit Result: Destroyed by H-77 Assassin with Coil Gun Performance ------------- Evolutions (7) 3500 Regions Visited (36) 7200 Robots Destroyed (451) 2255 Value Destroyed (21825) 21825 Prototype IDs (119) 2380 Alien Tech Used (0) 0 Bonus (10108) 10108 TOTAL SCORE: 47268 Bonus ------- High Alert Combat Kills 3188 Follower Combat Kills 1215 Hunted by Unchained 1000 Destroyed Unchained 1000 Entered Garrisons 1000 Entered DSFs 500 Aligned with FarCom 300 Acquired ECA 300 Met Warlord at Base 500 MAIN.C Attacked Warlord 500 Warlord Defense Kills 834 Friendly Fire -229 Cogmind --------- Core Integrity 0/1300 Matter 130/300 Energy 287/1150 System Corruption 1% Temperature Cool (0) Movement Walking (186) Ox1 Location -3/Garrison Parts ------- > --- POWER (2) -------- Hybrid Antimatter Reactor Micro Antimatter Reactor > --- PROPULSION (7) --- Myomer Leg Myomer Leg Advanced VSS Leg > --- UTILITY (9) ------ Advanced Cooling System Medium Storage Unit Advanced Visual Processing Unit Advanced Kinecellerator Improved Phase Shifter Experimental Cloaking Device Improved Core Shielding > --- WEAPON (3) ------- Vortex Rail Graviton Cannon Fusion Bomb Launcher > --- INVENTORY (10) --- Advanced Heat Sink Long-range Terrain Scanner Advanced Powered Armor Advanced Trap Extractor (4/8 Dirty Bomb) Dimensional Node Initializer Nanosword Nanosword Vortex Lance (40) Vortex Lance (40) Peak State ------------ > --- POWER ------------ Vortex Chain Reactor > --- PROPULSION ------- Cooled Gravmag System Cooled Antigrav System Antigrav Array Combat Linear Gravjet Combat Linear Gravjet > --- UTILITY ---------- Large Storage Unit Enhanced Optical Array Experimental Core Analyzer Nanoactuators Nanoactuators Advanced Actuator Array Advanced Phase Shifter Experimental Cloaking Device > --- WEAPON ----------- Nanosword Nanosword Nanosword > --- INVENTORY -------- Light Antimatter Reactor Cooled Gravmag System Cooled Gravmag System Combat Linear Gravjet Long-range Terrain Scanner Advanced Kinecellerator Experimental Focal Shield Advanced Trap Extractor Dimensional Node Initializer Vortex Rail Enhanced Nova Cannon Graviton Cannon Hellfire Missile Launcher Vortex Lance Vortex Lance [Rating: 166] Favorites ----------- Power Cooled Ion Engine Engine Cooled Ion Engine Power Core Micro Nuclear Core Reactor Micro Antimatter Reactor Propulsion Improved Gravmag System Treads Light Treads Leg Flexi-carbon Leg Wheel Wheel Hover Unit Improved Gravmag System Flight Unit Diametric Drive Utility Hacking Suite Device Advanced Heat Sink Storage Large Storage Unit Processor Enhanced Optical Array Hackware Hacking Suite Protection Hardened Medium Armor Plating Weapon Nanosword Energy Gun Heavy EM Shotgun Energy Cannon Cooled Particle Cannon Ballistic Gun Autogun Ballistic Cannon Hypervelocity Mass Driver Launcher Heavy Missile Launcher Special Weapon Advanced Remote Datajack Impact Weapon Heavy Flail Slashing Weapon Nanosword Piercing Weapon CR-A16's Pointy Stick Special Melee Weapon Datajack Build | -11 -10 -10 -9 -9 -9 -8 -8 -8 -8 -7 -7 -7 -7 -7 -7 -6 -6 -6 -6 -6 -6 -6 -5 -5 -5 -5 -4 -4 -4 -4 -4 -4 -3 -3 -3 -3 ------- Run | Yrd Mat Min Mat Min Exi Min Mat Gar Mat Fac Was Fac Low Low Zio Pro Fac Was Fac Gar Fac DSF Fac Upp Upp War Pro Fac Was Fac Gar Fac Res Gar Res Gar Slots Evolved 14 | . . . 2 . . . 2 . . 2 . . . . . . 2 . . . . . 2 . . . . 2 . . . . 2 . . . Power 1 | . . . . . . . . . . . . . . . . . . . . . . . . . . . . 1 . . . . . . . . Propulsion 5 | . . . 1 . . . . . . 2 . . . . . . . . . . . . . . . . . 1 . . . . 1 . . . Utility 7 | . . . 1 . . . 2 . . . . . . . . . 2 . . . . . 1 . . . . . . . . . 1 . . . Weapon 1 | . . . . . . . . . . . . . . . . . . . . . . . 1 . . . . . . . . . . . . . Parts Attached 445 | 7 11 1 22 4 1 3 3 23 14 43 . 7 1 . 7 2 2 1 39 11 . 15 31 3 8 13 4 17 1 5 23 42 8 49 16 8 Power 48 | 1 2 . 3 . . . . 1 1 5 . . . . . 1 . . 3 2 . 2 1 . . 1 1 3 . . 6 4 3 6 1 1 Engine 10 | 1 1 . 2 . . . . 1 1 1 . . . . . 1 . . 1 . . 1 . . . . . . . . . . . . . . Core 16 | . 1 . 1 . . . . . . 4 . . . . . . . . 2 1 . . 1 . . . 1 . . . 3 2 . . . . Reactor 22 | . . . . . . . . . . . . . . . . . . . . 1 . 1 . . . 1 . 3 . . 3 2 3 6 1 1 Propulsion 126 | 2 . . 10 2 . 1 . 6 2 20 . 1 . . . . . . 11 4 . . 3 . 2 3 1 6 . . 7 15 1 23 3 3 Treads 1 | . . . . 1 . . . . . . . . . . . . . . . . . . . . . . . . . . . . . . . . Leg 18 | . . . . . . . . 5 1 . . . . . . . . . . . . . . . . . . . . . . . . 9 . 3 Wheel 12 | 2 . . 8 1 . 1 . . . . . . . . . . . . . . . . . . . . . . . . . . . . . . Hover 56 | . . . . . . . . 1 1 9 . . . . . . . . 8 4 . . 3 . 2 3 1 6 . . 3 13 1 1 . . Flight 39 | . . . 2 . . . . . . 11 . 1 . . . . . . 3 . . . . . . . . . . . 4 2 . 13 3 . Utility 175 | 2 3 1 4 . . 1 2 5 4 10 . 3 . . 5 . 2 1 17 2 . 10 19 2 4 3 2 8 . 5 9 21 1 14 11 4 Device 78 | 1 . 1 . . . . 1 2 2 2 . 3 . . 2 . 1 1 5 1 . 1 8 1 2 2 1 5 . 4 6 7 1 10 5 3 Storage 14 | 1 2 . 1 . . . . . . 2 . . . . . . . . 2 . . 1 1 . . . . . . 1 . 1 . . 2 . Processor 35 | . . . . . . . 1 . 1 1 . . . . . . 1 . 8 . . 1 6 1 1 1 . 1 . . 3 5 . 1 3 . Hackware 17 | . . . 1 . . . . . . 2 . . . . 2 . . . 2 . . . 2 . . . 1 . . . . 6 . . 1 . Protection 31 | . 1 . 2 . . 1 . 3 1 3 . . . . 1 . . . . 1 . 7 2 . 1 . . 2 . . . 2 . 3 . 1 Artifact . | . . . . . . . . . . . . . . . . . . . . . . . . . . . . . . . . . . . . . Weapon 96 | 2 6 . 5 2 1 1 1 11 7 8 . 3 1 . 2 1 . . 8 3 . 3 8 1 2 6 . . 1 . 1 2 3 6 1 . Energy Gun 29 | 1 3 . . . . . . 6 4 5 . 1 . . . . . . 2 . . . 3 1 1 1 . . . . . . . 1 . . Energy Cannon 12 | . . . 1 . . . . . . 1 . . . . . 1 . . 2 . . . 2 . . . . . . . 1 1 . 3 . . Ballistic Gun 19 | 1 2 . 2 1 . 1 . 3 1 2 . 1 . . . . . . . . . 1 . . 1 1 . . . . . . 1 1 . . Ballistic Cannon 2 | . . . . . . . . . . . . . . . . . . . . . . . 1 . . . . . . . . . . 1 . . Launcher 13 | . 1 . 1 1 . . 1 1 1 . . . 1 . . . . . . 1 . . 2 . . . . . 1 . . 1 . . 1 . Special Weapon 4 | . . . . . . . . . . . . . . . . . . . . 1 . . . . . 3 . . . . . . . . . . Impact Weapon 7 | . . . 1 . 1 . . 1 1 . . . . . 1 . . . 1 . . . . . . . . . . . . . 1 . . . Slashing Weapon 6 | . . . . . . . . . . . . . . . . . . . 3 1 . 2 . . . . . . . . . . . . . . Piercing Weapon 3 | . . . . . . . . . . . . . . . 1 . . . . . . . . . . 1 . . . . . . 1 . . . Special Melee Weapon 1 | . . . . . . . . . . . . 1 . . . . . . . . . . . . . . . . . . . . . . . . Unidentified Prototypes 69 | . 1 . 4 . . . . . 5 14 . 2 . . 1 . . 1 11 . . 1 9 . . 7 . 4 1 . . 4 2 . 1 1 Parts Lost 101 | . . . . 2 . . . 7 1 1 . . . . . . . . 2 4 . 3 3 . 1 1 3 4 . . 19 7 2 32 2 7 Power 11 | . . . . . . . . . . 1 . . . . . . . . . . . 1 . . . 1 . 2 . . 3 1 . 1 . 1 Propulsion 52 | . . . . 1 . . . 3 . . . . . . . . . . . 3 . . 2 . 1 . 1 2 . . 9 5 1 18 2 4 Utility 27 | . . . . . . . . 2 . . . . . . . . . . 1 1 . 2 1 . . . 2 . . . 7 1 . 8 . 2 Weapon 11 | . . . . 1 . . . 2 1 . . . . . . . . . 1 . . . . . . . . . . . . . 1 5 . . Highest Loss Streak 8 | . . . . 2 . . . 4 1 1 . . . . . . . . 2 2 . 2 2 . 1 1 3 2 . . 7 2 2 8 2 5 To Critical Strikes 1 | . . . . . . . . . . . . . . . . . . . . . . . . . . . . 1 . . . . . . . . Average Backups 12 | . 8 13 14 13 14 13 14 14 14 6 10 9 10 10 9 10 9 10 9 9 10 9 13 14 14 14 13 13 14 14 14 14 14 13 10 9 Power 1 | . . 1 2 2 2 3 3 2 3 1 1 . . . . . . . . . 1 . . 1 1 . 1 1 1 1 1 1 1 1 1 . Propulsion 1 | . 1 1 3 4 4 4 4 4 5 1 . . 1 1 1 1 1 1 1 . . . 1 1 . . . . 2 3 1 1 1 . . . Utility 3 | . 4 6 5 5 4 4 3 4 3 2 1 2 2 2 1 2 2 2 1 1 1 1 3 2 2 2 2 3 4 3 3 5 5 5 3 3 Weapon 5 | . 3 4 3 2 3 2 2 2 2 1 7 6 6 6 6 6 6 6 5 6 7 7 7 9 9 8 8 7 6 6 6 6 6 5 4 4 Tool/Special . | . . . . . . . . . . . . . . . . . . . . . . . . . . . . . . . . . . . . . Unused Backups 60 | . 3 1 4 2 . . . 5 2 9 . 1 1 . . . . . 5 1 . . 4 . . 4 . 2 . . . 4 . 5 3 4 Power 10 | . . . 1 . . . . . 1 1 . 1 . . . . . . . 1 . . . . . 1 . 2 . . . 2 . . . . Propulsion 10 | . . . . . . . . 1 1 2 . . . . . . . . 2 . . . 1 . . 1 . . . . . 1 . 1 . . Utility 19 | . . 1 1 2 . . . 1 . 3 . . . . . . . . 2 . . . 1 . . . . . . . . . . 4 2 2 Weapon 18 | . 3 . 2 . . . . 2 . 3 . . 1 . . . . . 1 . . . 2 . . 2 . . . . . 1 . . . 1 Tool/Special 3 | . . . . . . . . 1 . . . . . . . . . . . . . . . . . . . . . . . . . . 1 1 Average Slot Usage (%) 91 | . 100 100 99 99 82 99 97 82 98 95 92 96 100 100 96 99 93 93 92 88 93 91 92 94 94 92 91 92 89 89 78 92 89 66 86 68 Engine 2 | . 9 . 9 11 11 11 9 9 9 . . . . . . . . . . 1 . . . . . . . . . . . . . . . . Core 2 | . 4 14 1 . . . . . . 6 7 7 7 7 7 7 6 6 5 2 . . . 5 5 4 . 3 . . 1 3 . . . . Reactor 2 | . . . . . . . . . . . . . . . . . . . . 2 6 5 4 . . . 4 4 5 5 5 4 8 7 8 4 Leg 2 | . . . . . . . . 1 26 . . . . . . . . . . . . . . . . . . . . . . . . 9 . 5 Wheel 6 | . 28 28 32 27 33 33 27 7 . . . . . . . . . . . . . . . . . . . . . . . . . . . . Hover 11 | . . . . . . . . 6 . 19 . . . . . . . . 12 25 26 26 22 23 23 22 22 26 26 26 18 27 26 1 . . Flight 6 | . . . . . . . . . . 15 38 38 38 38 38 38 33 33 13 . . . . . . . . . . . 4 . . 9 31 10 Device 8 | . 13 12 7 10 1 . 8 9 17 1 . 5 7 7 9 7 7 6 4 . . 4 . 5 11 11 10 11 15 25 17 15 17 12 15 11 Storage 6 | . 14 14 11 11 11 11 9 9 9 3 7 7 7 7 7 7 6 6 6 6 6 6 5 5 5 5 5 5 5 5 5 5 4 3 4 4 Processor 10 | . . . . . . . 8 2 . 5 7 7 7 7 7 7 11 13 18 26 26 16 18 28 23 21 23 17 15 10 8 8 9 6 10 12 Hackware 7 | . . . 11 11 11 11 9 9 9 18 15 15 15 15 5 7 6 6 15 6 6 1 9 5 . . 2 2 . . . 9 9 2 3 3 Protection 4 | . . 1 3 . 9 11 9 10 8 6 7 . . . 3 7 6 6 . 4 6 15 9 . 4 5 . 4 5 . . . . 1 . 1 Energy Gun 1 | . 6 . . . . . . 7 14 . . . . . . . . . 1 . . . . 3 . . . . . . . . . . . 2 Energy Cannon 1 | . . . . . . . . . . 5 . 2 7 7 7 4 6 6 3 3 6 . 4 . . . . . . . . . . 4 . . Ballistic Gun 5 | . 20 28 21 21 . 21 16 8 2 . . . . . . . . . . . . . . . 1 2 14 6 . . . . . . . . Impact Weapon 1 | . . . . . 5 . . . . 6 7 7 7 7 3 . . . 4 . . . . . . . . . . . . . . . . . Slashing Weapon 5 | . . . . . . . . . . . . . . . . . . . 2 6 6 11 11 13 15 13 1 8 15 15 14 12 11 4 9 6 Peak Build Rating 166 | 7 14 14 20 19 19 21 25 42 43 71 66 74 74 73 80 75 79 88 84 90 90 94 119 121 121 143 141 162 163 163 166 137 144 136 130 118 Average Rating 77 | 5 9 13 18 18 17 19 24 33 40 51 65 68 73 73 75 73 78 79 78 79 90 92 105 117 118 132 132 152 162 160 118 124 134 89 112 95 On Entrance 77 | . 7 13 13 19 18 19 20 25 35 41 66 66 74 73 73 74 74 79 79 79 90 90 91 117 118 120 141 135 162 163 163 102 132 136 84 94 Avg Prop Armor Cover (%) 4 | . . . . 10 . . . 2 . 3 3 3 . . . . . . 4 3 3 3 . . . . . 3 . . 6 6 4 29 . . Naked Turns . | . . . . . . . . . . . . . . . . . . . . . . . . . . . . . . . . . . . . . Heaviest Build 98 | 13 36 36 41 41 39 41 43 56 49 34 26 28 28 28 58 33 30 30 33 36 36 59 60 45 55 63 54 89 71 73 77 67 61 98 44 77 Greatest Support 100 | 26 26 26 36 36 30 36 36 40 47 42 33 33 33 33 33 33 33 33 57 62 46 62 64 57 59 66 66 89 78 78 78 71 65 100 44 68 Greatest Overweight (x) 4 | . 1 1 1 2 1 1 1 3 1 2 . . . . 1 . . . . . . . . . . . . 1 . . 1 1 1 2 1 4 Average Overweight (x) . | . . 1 . 1 . 1 1 1 . . . . . . . . . . . . . . . . . . . . . . . . . . . . Largest Inventory Capacity 15 | 8 15 15 15 15 15 15 15 15 15 15 10 10 10 10 10 10 10 10 10 10 10 15 15 15 15 15 15 15 15 15 15 15 15 15 15 10 Average Capacity 13 | 7 12 15 15 15 15 15 15 15 15 7 10 10 10 10 10 10 10 10 10 10 10 11 15 15 15 15 15 15 15 15 15 15 15 14 10 10 Most Carried 15 | 1 14 15 15 15 15 15 15 15 15 15 10 10 10 10 10 10 10 10 10 10 10 10 15 15 15 15 15 15 15 15 15 15 15 15 15 10 Average Carried 12 | . 8 13 14 13 14 13 14 14 14 6 9 9 9 9 9 10 9 10 9 9 10 9 13 14 14 14 13 14 14 14 14 14 14 13 10 9 Final Capacity 15 | 8 15 15 15 15 15 15 15 15 15 10 10 10 10 10 10 10 10 10 10 10 10 15 15 15 15 15 15 15 15 15 15 15 15 15 10 10 Final Carried 15 | 1 12 14 15 13 15 14 15 15 15 10 10 10 10 10 10 10 10 10 10 10 10 10 15 14 15 15 15 15 15 14 14 15 15 15 10 9 Class Distribution -------------------- 24% | Mutant 11% | Gladiator 11% | Scavenger-Mutant 8% | Hacker-Scout 7% | Hacker-Sprinter 6% | Scavenger-Gladiator 5% | Scavenger-Skirmisher 5% | Hacker-Gladiator 4% | Hacker-Mutant Dominant Class ---------------- Mutant | -10/Materials Mutant | -10/Mines Mutant | -9/Materials Scavenger-Mutant | -9/Mines Mutant | -9/Exiles Mutant | -8/Mines Scavenger-Mutant | -8/Materials Mutant | -8/Garrison Scavenger-Skirmisher | -8/Materials Hacker-Mutant | -7/Factory Hacker-Sprinter | -7/Waste Hacker-Sprinter | -7/Factory Hacker-Sprinter | -7/Lower Caves Hacker-Sprinter | -7/Lower Caves Sprinter | -7/Zion Sprinter | -6/Proximity Caves Sprinter | -6/Factory Sprinter | -6/Waste Hacker-Scout | -6/Factory Mutant | -6/Garrison Mutant | -6/Factory Mutant | -6/DSF Hacker-Gladiator | -5/Factory Gladiator | -5/Upper Caves Gladiator | -5/Upper Caves Gladiator | -5/Warlord Scavenger-Gunner | -4/Proximity Caves Scavenger-Gladiator | -4/Factory Scavenger-Gladiator | -4/Waste Trapper-Gladiator | -4/Factory Scavenger-Gladiator | -4/Garrison Scavenger-Scout | -4/Factory Hacker-Ninja | -3/Research Scavenger-Mutant | -3/Garrison Scavenger-Ninja | -3/Research Scavenger-Mutant | -3/Garrison Resources | -11 -10 -10 -9 -9 -9 -8 -8 -8 -8 -7 -7 -7 -7 -7 -7 -6 -6 -6 -6 -6 -6 -6 -5 -5 -5 -5 -4 -4 -4 -4 -4 -4 -3 -3 -3 -3 ----------- Run | Yrd Mat Min Mat Min Exi Min Mat Gar Mat Fac Was Fac Low Low Zio Pro Fac Was Fac Gar Fac DSF Fac Upp Upp War Pro Fac Was Fac Gar Fac Res Gar Res Gar Matter Collected 12417 | 300 358 183 1422 195 40 265 135 644 403 634 10 135 34 . 161 409 . . 650 515 . 321 776 45 219 577 474 726 . 110 338 776 170 1018 210 164 Remotely . | . . . . . . . . . . . . . . . . . . . . . . . . . . . . . . . . . . . . . Salvage Created 20493 | 92 362 188 1876 235 . 216 387 1089 1239 886 . 195 37 . . 374 . . 598 1309 . 702 1368 . 494 220 830 1120 . 145 1438 1353 679 2148 580 333 Parts 1013 | 6 29 15 107 21 . 11 19 56 57 37 . 5 5 . . 12 . . 40 61 . 26 70 . 26 3 24 60 . 5 68 69 48 89 31 13 Haulers Intercepted 31 | . 2 . 6 . . . . . 4 2 . 1 . . . . . . 2 . . . 5 . . . . 1 . 1 . 4 1 . 2 . Recyclers Shooed 6 | . 1 . 1 . . . . . 1 1 . . . . . . . . . . . . . . . . . 1 . . . 1 . . . . Parts Field Recycled . | . . . . . . . . . . . . . . . . . . . . . . . . . . . . . . . . . . . . . Retrieved Matter . | . . . . . . . . . . . . . . . . . . . . . . . . . . . . . . . . . . . . . Parts Self-Destructed 59 | . . . . . . . . . . . . . 5 . . 10 . . . . . . . . 24 . 20 . . . . . . . . . Prevented 2 | . . . . . . . . . . . . . . . . . . . . . . . . . 2 . . . . . . . . . . . Parts Restored . | . . . . . . . . . . . . . . . . . . . . . . . . . . . . . . . . . . . . . Kills | -11 -10 -10 -9 -9 -9 -8 -8 -8 -8 -7 -7 -7 -7 -7 -7 -6 -6 -6 -6 -6 -6 -6 -5 -5 -5 -5 -4 -4 -4 -4 -4 -4 -3 -3 -3 -3 ------- Run | Yrd Mat Min Mat Min Exi Min Mat Gar Mat Fac Was Fac Low Low Zio Pro Fac Was Fac Gar Fac DSF Fac Upp Upp War Pro Fac Was Fac Gar Fac Res Gar Res Gar Combat Hostiles Destroyed 330 | . 12 5 28 8 . 6 7 19 17 11 . 2 3 . . 8 . . 12 25 . 8 18 . 9 7 13 15 . . 23 14 9 39 3 9 Melee 84 | . . . . . . . . . . 4 . 1 . . . . . . 1 5 . 5 9 . 5 . . 3 . . 23 12 9 3 3 1 Guns 91 | . 4 5 26 3 . 3 . 14 14 1 . . . . . . . . 4 . . . . . 3 2 1 8 . . . . . 1 . 2 Cannons 42 | . . . . . . . . . . 3 . . . . . 3 . . 1 . . . . . 1 . 2 . . . . . . 32 . . AOE 104 | . 8 . 2 5 . 3 6 2 3 . . . 3 . . 5 . . 6 20 . 3 9 . . 5 10 4 . . . 2 . 2 . 6 Classes Destroyed 24 | 1 6 1 3 . . . . 3 . . . . . . . 2 . . 1 2 . 2 . . . 2 . . . . . 1 . . . . Worker 13 | . . 1 1 . . 1 . . 1 1 . . . . . . . . 2 . . . 2 . . . . . . . . 1 3 . . . Builder 8 | . 1 . . 2 . . . . . 1 . . . . . . . . . . . . 1 . . . . 3 . . . . . . . . Tunneler 7 | 4 . 1 . 1 . 1 . . . . . . . . . . . . . . . . . . . . . . . . . . . . . . Hauler 31 | . 2 . 6 . . . . . 4 2 . 1 . . . . . . 2 . . . 5 . . . . 1 . 1 . 4 1 . 2 . Recycler 5 | . . . 2 . . 1 . . 1 1 . . . . . . . . . . . . . . . . . . . . . . . . . . Minesweeper 3 | . . . . . . . . . . . . . . . . 1 . . . . . . . . 1 . 1 . . . . . . . . . Mechanic 1 | . . . . . . . . . . . . . . . . . . . . . . . . . . . . . . . . 1 . . . . Operator 17 | . 1 . 2 . . . . . 3 3 . . . . . . . . 3 . . . 1 . . . . 1 . . . 2 . . 1 . Drone 2 | . . . . . . . . . . . . . . . . 2 . . . . . . . . . . . . . . . . . . . . Watcher 33 | . 3 . 5 . . . . 1 2 3 . 2 . . . . . . 1 . . . 4 . . . . 3 . 1 . 3 2 . 3 . Swarmer 98 | . 9 3 3 3 . 3 . . 3 . . . 3 . . . . . 6 8 . 3 6 . 2 . 5 5 . . 9 4 5 14 . 4 Cutter 4 | . . . . . . . . . . . . . . . . . . . . 4 . . . . . . . . . . . . . . . . Saboteur 4 | . . . . . . . . . . . . . . . . . . . 1 3 . . . . . . . . . . . . . . . . Grunt 102 | . 3 2 14 3 . 3 6 4 10 3 . 2 . . . 4 . . . 3 . 2 3 . 5 3 6 1 . . 5 3 . 16 . 1 Brawler 4 | . . . 1 . . . . . 1 . . . . . . 1 . . . 1 . . . . . . . . . . . . . . . . Duelist 8 | . . . . . . . . 3 1 . . . . . . . . . . . . . . . . 2 1 . . . . . . 1 . . Protector 1 | . . . . . . . . . . . . . . . . . . . . . . . . . . 1 . . . . . . . . . . Sentry 48 | . . . 10 2 . . 1 8 2 2 . . . . . . . . . 3 . 1 2 . 1 . . 4 . . 2 2 1 5 1 1 Specialist 1 | . . . . . . . . . . . . . . . . . . . . . . 1 . . . . . . . . . . . . . . Hunter 13 | . . . . . . . . 3 . 2 . . . . . . . . . 1 . . . . . . . . . . 5 . . . . 2 Programmer 40 | . . . . . . . . 1 . 4 . . . . . 1 . . 5 1 . . 7 . 1 . 1 4 . . 3 5 3 2 2 . Heavy 1 | . . . . . . . . . . . . . . . . . . . . . . 1 . . . . . . . . . . . . . . Behemoth 4 | . . . . . . . . . . . . . . . . . . . . 1 . . . . . . . . . . 1 . . 1 . 1 Executioner 1 | . . . . . . . . . . . . . . . . . . . . . . . . . . 1 . . . . . . . . . . Thug 1 | . . . . . . . . . . . . . . . . 1 . . . . . . . . . . . . . . . . . . . . Best Kill Streak 15 | 3 9 3 6 5 . 3 7 4 7 4 . 2 3 . . 4 . . 3 15 . 3 6 . 2 5 6 6 . 2 3 4 8 5 2 6 Combat Bots Only 15 | . 9 3 4 3 . 3 7 4 5 2 . 1 3 . . 4 . . 3 15 . 3 5 . 2 5 6 6 . . 3 4 5 5 2 6 Max Kills in Single Turn 5 | 1 2 1 2 5 . 2 1 2 2 1 . 1 3 . . 1 . . 3 3 . 2 3 . 1 3 5 4 . 1 2 3 2 2 1 3 Gunslinging 1 | . . . . . . . . . 1 . . . . . . . . . . . . . . . . . . . . . . . . . . . Exploded 5 | . 2 . 2 3 . 2 1 1 2 . . . 3 . . 1 . . 3 3 . 2 3 . . 3 5 4 . . . 2 . 2 . 3 Melee 2 | . . . . . . . . . . 1 . 1 . . . . . . 1 1 . 1 1 . 1 . . 1 . . 2 1 2 1 1 1 Uniques/NPCs Destroyed 1 | . . . . . . . . . . . . . . . . . . . . . . . . . . . . 1 . . . . . . . . BL-1NK (-4/Factory) Combat | -11 -10 -10 -9 -9 -9 -8 -8 -8 -8 -7 -7 -7 -7 -7 -7 -6 -6 -6 -6 -6 -6 -6 -5 -5 -5 -5 -4 -4 -4 -4 -4 -4 -3 -3 -3 -3 -------- Run | Yrd Mat Min Mat Min Exi Min Mat Gar Mat Fac Was Fac Low Low Zio Pro Fac Was Fac Gar Fac DSF Fac Upp Upp War Pro Fac Was Fac Gar Fac Res Gar Res Gar Hostile Shots Fired 1821 | . 37 18 86 12 . 13 22 140 49 178 . 7 9 2 . 15 . . 139 129 . 44 119 . 24 30 35 64 . . 185 41 36 284 17 86 Missed 665 | . 12 9 27 1 . 4 8 35 17 87 . 3 6 1 . 9 . . 63 49 . 14 43 . 12 14 14 13 . . 63 19 19 80 5 38 Hits 1156 | . 25 9 59 11 . 9 14 105 32 91 . 4 3 1 . 6 . . 76 80 . 30 76 . 12 16 21 51 . . 122 22 17 204 12 48 Melee 7 | . . . . . . . . 6 . . . . . . . . . . 1 . . . . . . . . . . . . . . . . . Projectile 1149 | . 25 9 59 11 . 9 14 99 32 91 . 4 3 1 . 6 . . 75 80 . 30 76 . 12 16 21 51 . . 122 22 17 204 12 48 AOE 2 | . . . . . . . . . . . . . . . . . . . . 1 . . . . . . . . . . . 1 . . . . Critical Strikes 53 | . . . 2 1 . . 3 3 2 2 . . . . . . . . 1 4 . 3 9 . 1 2 1 2 . . 5 1 . 10 . 1 Part Disruptions 2 | . . . . . . . . 1 . . . . . . . . . . 1 . . . . . . . . . . . . . . . . . Damage Taken 21839 | . 322 79 784 153 . 139 253 1658 527 863 . 106 17 15 . 71 . . 1140 932 . 762 1564 . 230 463 426 1022 . . 2643 1055 419 4897 402 897 Core 4039 | . 51 . 121 18 . 27 64 305 43 171 . 40 5 . . 32 . . 279 246 . 11 152 . 38 20 58 158 . . 747 142 101 664 187 359 Absorbed by Shields . | . . . . . . . . . . . . . . . . . . . . . . . . . . . . . . . . . . . . . Redirected to Shielding 6 | . . . . . . . . . . . . . . . . . . . . . . . . . . . . . . . . . . . . 6 Ignored by Resistances 204 | . . . . . . . . . . 19 . . . . . . . . . . . . . . . . . 179 . . 6 . . . . . Regen/Repaired (Parts) 307 | . . . 64 . . . . . 97 . 27 34 . . . . . . . . . . . . . 85 . . . . . . . . . . Core Remaining (%) 55 | 100 . 79 . . . 58 . . 25 . . . . . . 64 . . . . . 36 . . . . 73 . . . . 8 . . . . Volleys Fired 795 | 10 40 16 125 13 . 15 22 120 63 38 . 2 1 . . 17 1 . 25 27 . 4 27 . 11 33 19 30 . . 1 16 . 103 . 16 Largest 3 | 2 2 2 2 2 . 2 2 2 2 1 . 1 1 . . 1 1 . 1 1 . 1 1 . 1 3 3 3 . . 1 1 . 3 . 3 Hottest 360 | 70 70 46 46 46 . 46 46 100 98 90 . 90 39 . . 39 90 . 100 90 . 90 94 . 78 105 105 105 . . 120 120 . 360 . 155 Shots Fired 1278 | 20 73 32 246 22 . 26 29 184 122 38 . 3 1 . . 19 1 . 28 27 . 5 28 . 11 35 35 80 . . 1 17 . 169 . 26 Gun 878 | 20 66 32 245 19 . 21 14 172 120 13 . . . . . . . . 15 . . . 1 . 9 11 24 75 . . . . . 8 . 13 Cannon 283 | . . . . . . . . . . 25 . 3 . . . 14 1 . 12 8 . 2 17 . 2 6 4 5 . . 1 15 . 161 . 7 Launcher 101 | . 7 . 1 3 . 5 15 12 2 . . . 1 . . 5 . . 1 17 . 3 10 . . 4 7 . . . . 2 . . . 6 Special 16 | . . . . . . . . . . . . . . . . . . . . 2 . . . . . 14 . . . . . . . . . . Kinetic 655 | 10 41 32 245 19 . 21 14 59 36 . . . . . . . . . . . . . . . 10 17 28 80 . . . . . 36 . 7 Thermal 355 | 10 25 . . . . . . 28 37 38 . 3 . . . 14 1 . 27 8 . 2 15 . 1 . . . . . 1 15 . 130 . . Explosive 70 | . 7 . 1 3 . 5 . . . . . . 1 . . 5 . . 1 17 . 3 10 . . 4 7 . . . . . . . . 6 Electromagnetic 166 | . . . . . . . 15 97 49 . . . . . . . . . . . . . 3 . . . . . . . . 2 . . . . Entropic 16 | . . . . . . . . . . . . . . . . . . . . . . . . . . . . . . . . . . 3 . 13 Robot Hit Streak 19 | 12 7 9 19 12 . 8 10 15 8 9 . 2 . . . 11 . . 6 18 . 2 7 . 2 8 6 8 . . . 8 . 11 . 13 Robot Miss Streak 7 | 1 4 3 4 1 . 3 1 3 7 3 . 1 . . . 2 . . 4 . . 1 5 . 1 2 6 3 . . . . . 5 . 4 Penetration Max 2 | . . . . . . . . . . . . . . . . . . . . . . . . . . 1 1 1 . . . . . 2 . . Secondary Targets 8 | . . 2 . . . . . 3 3 . . . . . . . . . . . . . . . . . . . . . . . . . . . Max Gunslinging Chain 1 | . . 1 . . . . . 1 1 . . . . . . . . . . . . . . . . . . . . . . . . . . . Shots Hit Robots 1148 | 14 40 20 160 16 . 16 15 120 78 54 . 6 1 . . 16 . . 28 51 . 22 58 . 16 23 18 60 . 3 92 45 19 105 26 26 Core Hits 616 | 4 27 8 62 17 . 11 13 46 50 14 . 1 3 . . 14 . . 24 43 . 13 33 . 10 17 20 30 . 3 28 28 14 58 7 18 Critical Kills 22 | . . . 1 . . 1 . 2 . 1 . 1 . . . . . . 1 . . . . . 2 1 2 2 . . . . . 8 . . Critical Parts Destroyed 21 | . . . 1 . . 1 . . . 5 . 1 . . . . . . . . . . . . 1 3 . 6 . . . . . 2 . 1 Critical Strikes 88 | 2 2 . 2 . . 2 . 5 1 7 . 2 . . . . . . 1 2 . 2 6 . 4 4 2 13 . . 6 5 . 16 2 2 Burn 9 | 2 2 . . . . . . 3 1 . . . . . . . . . . . . . . . . . . . . . . . . 1 . . Meltdown 1 | . . . . . . . . . . . . . . . . . . . . . . . . . . . . . . . . . . 1 . . Destroy 32 | . . . 2 . . 2 . 2 . 1 . . . . . . . . . . . . . . 3 4 2 8 . . . . . 8 . . Blast 2 | . . . . . . . . . . . . . . . . . . . . . . . . . . . . 1 . . . . . 1 . . Smash 9 | . . . . . . . . . . 6 . 2 . . . . . . 1 . . . . . . . . . . . . . . . . . Sever 33 | . . . . . . . . . . . . . . . . . . . . 2 . 2 6 . 1 . . 4 . . 6 5 . 4 2 1 Detonate 2 | . . . . . . . . . . . . . . . . . . . . . . . . . . . . . . . . . . 1 . 1 Melee Attacks 820 | . . . 4 . . . . 8 1 52 . 19 1 1 . 5 . . 53 77 . 33 93 . 16 . 5 45 . 12 151 95 39 43 45 22 Impact 121 | . . . 4 . . . . 8 1 52 . 19 1 1 . . . . 35 . . . . . . . . . . . . . . . . . Slashing 692 | . . . . . . . . . . . . . . . . . . . 16 77 . 33 93 . 16 . 5 45 . 12 151 95 39 43 45 22 Piercing 7 | . . . . . . . . . . . . . . . . 5 . . 2 . . . . . . . . . . . . . . . . . Sneak Attacks 59 | . . . . . . . . . . 10 . 3 1 . . 1 . . 5 1 . 1 7 . 2 . . 2 . 1 4 11 5 . 5 . Combat Hostiles 15 | . . . . . . . . . . 2 . 1 1 . . . . . . 1 . . 1 . 1 . . 1 . . 1 4 1 . 1 . Follow-up Attacks 85 | . . . . . . . . . . . . . . . . . . . 1 1 . 2 9 . 1 . . 15 . 1 35 12 4 2 2 . Damage Inflicted 58883 | 188 1044 346 2686 662 . 741 817 1947 1772 2618 . 576 344 . . 1075 . . 2019 5702 . 1599 4596 . 915 2043 2374 3728 . 245 5617 3692 1500 5415 2215 2407 Guns 10466 | 188 529 346 2571 250 . 194 166 1351 1404 236 . . . . . . . . 375 . . . . . 132 305 167 1537 . . . . . 343 . 372 Cannons 5660 | . . . . . . . . . . 516 . 28 . . . 361 . . 89 . . . 153 . 49 204 154 51 . . . 41 . 3654 . 360 Explosions 14066 | . 515 . 115 412 . 547 651 596 347 . . . 229 . . 555 . . 621 2467 . 305 1370 . . 1534 1639 362 . . . 354 . 221 . 1226 Melee 28670 | . . . . . . . . . . 1866 . 548 115 . . 159 . . 934 3235 . 1294 3073 . 734 . 414 1778 . 245 5617 3297 1500 1197 2215 449 Ramming 21 | . . . . . . . . . 21 . . . . . . . . . . . . . . . . . . . . . . . . . . . Kinetic 8494 | 72 345 346 2571 250 . 194 166 634 356 . . . . . . . . . . . . . . . 181 509 321 1588 . . . . . 601 . 360 Thermal 7496 | 116 184 . . . . 145 147 320 579 752 . 28 . . . 361 . . 464 . . . 108 . . 332 227 . . . . 212 . 3341 . 180 Explosive 11030 | . 515 . 115 412 . 402 . 17 . . . . 229 . . 555 . . 621 2467 . 305 1370 . . 1202 1412 362 . . . . . . . 1046 Electromagnetic 2524 | . . . . . . . 504 976 816 . . . . . . . . . . . . . 45 . . . . . . . . 183 . . . . Impact 2833 | . . . . . . . . . . 1866 . 548 115 . . . . . 304 . . . . . . . . . . . . . . . . . Slashing 25541 | . . . . . . . . . . . . . . . . . . . 493 3235 . 1294 3073 . 734 . 414 1778 . 245 5617 3297 1500 1197 2215 449 Piercing 296 | . . . . . . . . . . . . . . . . 159 . . 137 . . . . . . . . . . . . . . . . . Entropic 648 | . . . . . . . . . . . . . . . . . . . . . . . . . . . . . . . . . . 276 . 372 Highest Corruption 14 | . . . 4 4 4 4 . 5 5 5 5 5 . . . 1 . 6 8 11 11 11 6 . . 7 1 4 14 14 4 6 2 5 5 1 Average Corruption 4 | . . . 4 4 4 4 . 4 5 4 5 4 . . . 1 . 6 6 10 11 11 3 . . 7 1 3 12 7 1 4 2 4 1 1 Corruption Purged 27 | . . . . . . . . . . . . 5 . . . . . . 2 . . . . . . . . 2 . 14 . . . . 4 . Corruption Blocked 2 | . . . . . . . . . . . . . . . . . . . . . . . 2 . . . . . . . . . . . . . Effects 386 | . . . 40 10 4 15 . 13 36 26 4 10 . . . 4 . . 44 44 1 15 9 . . 1 2 6 4 3 5 32 3 47 5 3 Message Errors 92 | . . . 13 2 2 2 . 2 12 6 . 3 . . . . . . 11 8 . 1 . . . . . 1 . . 2 8 3 12 3 1 Matter Fused 98 | . . . 6 2 1 7 . 4 6 7 . 1 . . . 1 . . 14 15 . 6 2 . . 1 1 2 2 . 1 5 . 11 2 1 Heat Flow Errors 43 | . . . 2 2 . 3 . 3 4 5 . 2 . . . . . . 3 5 . 1 2 . . . 1 1 . 1 1 2 . 5 . . Energy Discharges 44 | . . . 5 1 . . . . 3 2 2 1 . . . . . . 3 7 . 2 2 . . . . . 1 1 . 8 . 6 . . Parts Rejected 6 | . . . . . . . . . . . . . . . . . . . . . . . 1 . . . . 1 . . . 4 . . . . Parts Fused 2 | . . . . . . . . . 1 . . . . . . . . . 1 . . . . . . . . . . . . . . . . . Data Loss (minor) 47 | . . . 4 2 . 1 . 3 2 5 2 2 . . . . . . 7 2 1 3 1 . . . . 1 . 1 1 3 . 5 . 1 Data Loss (major) 16 | . . . 3 . 1 1 . . 1 1 . . . . . . . . 1 4 . . . . . . . . . . . . . 4 . . Misfires 15 | . . . 1 . . 1 . 1 3 . . 1 . . . 2 . . 3 . . 1 1 . . . . . . . . 1 . . . . Alerts 10 | . . . 2 . . . . . . . . . . . . 1 . . 1 2 . 1 . . . . . . . . . 1 . 2 . . Misdirections 2 | . . . . . . . . . . . . . . . . . . . . 1 . . . . . . . . 1 . . . . . . . Weapon Failures 11 | . . . 4 1 . . . . 4 . . . . . . . . . . . . . . . . . . . . . . . . 2 . . Overload Shots 17 | . . . . . . . . . . 1 . 1 . . . . 1 . 6 2 . 1 4 . 1 . . . . . . . . . . . Overflow Damage 4110 | . 8 . . . . 7 . 11 . 675 . 282 . . . 105 . . 249 221 . 39 448 . 86 39 272 215 . . 303 586 199 11 341 13 Projectiles 87 | . . . . . . . . . . 33 . . . . . 13 . . . . . . . . . . 30 . . . . . . 11 . . Explosions 487 | . 8 . . . . 7 . 11 . . . . . . . 38 . . 84 62 . 33 51 . . 39 22 25 . . . 107 . . . . Melee 3536 | . . . . . . . . . . 642 . 282 . . . 54 . . 165 159 . 6 397 . 86 . 220 190 . . 303 479 199 . 341 13 Knockbacks 13 | . . . . . . . . . . 6 . 2 . . . . . . 1 . . . . . . . . . . . . . . 4 . . Impact 9 | . . . . . . . . . . 6 . 2 . . . . . . 1 . . . . . . . . . . . . . . . . . Kinetic 4 | . . . . . . . . . . . . . . . . . . . . . . . . . . . . . . . . . . 4 . . Secondary . | . . . . . . . . . . . . . . . . . . . . . . . . . . . . . . . . . . . . . Self-Inflicted Damage 888 | . 107 . . . . 40 48 87 29 . . . . . . . . . 42 35 . . 13 . . . 54 . . . . 364 . 37 . 32 Shots 28 | . 4 . . . . 1 3 6 1 . . . . . . . . . 1 1 . . 1 . . . 1 . . . . 6 . 1 . 2 Rammed . | . . . . . . . . . . . . . . . . . . . . . . . . . . . . . . . . . . . . . Targets Rammed 1 | . . . . . . . . . 1 . . . . . . . . . . . . . . . . . . . . . . . . . . . Kicked 1 | . . . . . . . . . 1 . . . . . . . . . . . . . . . . . . . . . . . . . . . Crushed . | . . . . . . . . . . . . . . . . . . . . . . . . . . . . . . . . . . . . . Highest Temperature 460 | 63 52 79 224 199 . 269 5 178 222 460 184 197 . . . 150 1 . 225 264 . 127 175 . 20 312 185 225 . 274 150 413 32 323 4 11 Average Temperature 58 | 27 17 23 28 76 . 72 5 38 66 75 72 54 . . . 73 1 . 51 100 . 49 63 . 8 130 41 77 . 143 49 68 11 62 1 11 Received Heat Transfer 4052 | . 36 18 363 78 . 27 171 189 288 207 . 18 . 9 . 15 . . 75 153 . 147 114 . 54 381 106 117 . . 244 66 9 956 45 166 Effects 6 | . . . . . . . . . . 1 . . . . . . . . . . . . . . . 1 . . . . . 4 . . . . Shutdowns 1 | . . . . . . . . . . . . . . . . . . . . . . . . . . . . . . . . 1 . . . . Energy Bleed 1 | . . . . . . . . . . . . . . . . . . . . . . . . . . 1 . . . . . . . . . . Interference 2 | . . . . . . . . . . . . . . . . . . . . . . . . . . . . . . . . 2 . . . . Matter Decay 1 | . . . . . . . . . . . . . . . . . . . . . . . . . . . . . . . . 1 . . . . Short Circuit 1 | . . . . . . . . . . 1 . . . . . . . . . . . . . . . . . . . . . . . . . . Siege Activations . | . . . . . . . . . . . . . . . . . . . . . . . . . . . . . . . . . . . . . Martial Activations . | . . . . . . . . . . . . . . . . . . . . . . . . . . . . . . . . . . . . . Shielding Activations . | . . . . . . . . . . . . . . . . . . . . . . . . . . . . . . . . . . . . . Robots Disrupted 2 | . . . . . . . . . 1 . . . . . . . . . 1 . . . . . . . . . . . . . . . . . Combat Hostiles 1 | . . . . . . . . . . . . . . . . . . . 1 . . . . . . . . . . . . . . . . . Robots Corrupted 16 | . . . . . . . 1 3 . 7 . 4 . . . . . . . . . . 1 . . . . . . . . . . . . . Combat Hostiles 7 | . . . . . . . 1 3 . 2 . 1 . . . . . . . . . . . . . . . . . . . . . . . . Parts Fried 45 | . . . 1 . . . 3 13 6 11 . 5 . . . . . . 1 . . . 3 . . 1 . . . . . 1 . . . . Impact Corruptions 31 | . . . . . . . . . . 23 . 7 . . . . . . 1 . . . . . . . . . . . . . . . . . Robots Melted 2 | . . . . . . . . . . 1 . . . . . . . . . . . . . . . . . . . . . . . 1 . . Combat Hostiles 2 | . . . . . . . . . . 1 . . . . . . . . . . . . . . . . . . . . . . . 1 . . Parts Melted 10 | 2 . . . . . . . . . . . . . . . 2 . . 2 . . . . . . . . . . . . . . 4 . . Heat Transferred 8249 | 481 666 . . . . 150 100 914 977 962 . 37 . . . 444 . . 686 . . . 148 . . 250 200 . . . . 187 . 1947 . 100 Parts Sabotaged 1 | . . . . . . . . . . . . . . . . . . . 1 . . . . . . . . . . . . . . . . . Parts Stolen . | . . . . . . . . . . . . . . . . . . . . . . . . . . . . . . . . . . . . . Parts Stripped . | . . . . . . . . . . . . . . . . . . . . . . . . . . . . . . . . . . . . . Power Chain Reactions 13 | . . . . . . . 4 2 3 . . . . . . . . . . . . . . . . 2 2 . . . . . . . . . Alert | -11 -10 -10 -9 -9 -9 -8 -8 -8 -8 -7 -7 -7 -7 -7 -7 -6 -6 -6 -6 -6 -6 -6 -5 -5 -5 -5 -4 -4 -4 -4 -4 -4 -3 -3 -3 -3 ------- Run | Yrd Mat Min Mat Min Exi Min Mat Gar Mat Fac Was Fac Low Low Zio Pro Fac Was Fac Gar Fac DSF Fac Upp Upp War Pro Fac Was Fac Gar Fac Res Gar Res Gar Maximum Alert Level 4 | . 1 . 2 . . . 1 4 2 . . 3 . . . . 1 . 2 4 3 3 3 . . . . 1 . . 3 3 2 4 3 3 Low Security (%) 29 | 100 18 100 27 100 . 100 98 11 . 100 100 9 . . . . . 100 26 . . . . . . . . 71 100 100 13 . . . . . Level 1 18 | . 81 . 26 . . . 1 18 21 . . 46 . . . . 100 . 36 1 . . 22 . . . . 28 . . 21 . 59 . . . Level 2 32 | . . . 46 . . . . 37 78 . . 30 . . . . . . 37 4 . 92 59 . . . . . . . 24 84 40 40 25 86 Level 3 11 | . . . . . . . . 23 . . . 12 . . . . . . . 33 100 7 17 . . . . . . . 40 15 . 19 74 13 Level 4 7 | . . . . . . . . 8 . . . . . . . . . . . 59 . . . . . . . . . . . . . 39 . . Level 5 . | . . . . . . . . . . . . . . . . . . . . . . . . . . . . . . . . . . . . . High Security . | . . . . . . . . . . . . . . . . . . . . . . . . . . . . . . . . . . . . . Max Security . | . . . . . . . . . . . . . . . . . . . . . . . . . . . . . . . . . . . . . Sterilizations 1 | . . . . . . . . . . . . . . . . . . . . . . 1 . . . . . . . . . . . . . . Peak Influence 1558 | 5 315 146 621 195 . 133 205 1232 600 194 60 895 . . . . 351 119 589 1539 807 798 934 . . . . 377 112 43 988 752 597 1558 902 821 Initial 876 | . . 76 . 175 . . . 120 600 171 60 . . . . . 204 119 76 315 807 567 418 . . . . 81 112 43 7 518 394 431 876 519 Average 451 | 1 226 66 357 120 . 38 55 593 429 99 17 411 . . . . 280 116 322 1130 807 657 522 . . . . 134 91 13 581 599 408 903 753 588 Influence Increases 17446 | 20 593 130 1132 237 . 198 216 1222 561 784 12 1363 70 60 . 247 307 . 1184 1304 4 261 1246 . 240 230 320 757 . 62 1171 1032 423 1447 241 372 Destroy 0b10 Robot/C 7160 | . 240 100 560 160 . 120 140 440 340 220 . 480 60 . . 160 . . 240 540 . 160 360 . 180 120 260 280 . . 500 280 180 780 80 180 Destroy 0b10 Robot/NC 715 | 20 35 10 80 15 . 15 . 5 55 55 . 50 . . . 15 . . 40 40 . 15 65 . 5 5 20 40 . 10 5 50 30 . 35 . Destroy Leader 1358 | . 60 20 202 20 . 20 30 20 92 100 . 98 10 . . 20 . . 56 40 . 20 88 . 10 . 40 88 . 4 50 84 36 80 40 30 Allied During Kill 348 | . . . . . . . . 8 . . . 242 . . . 52 . . . 6 . . . . . . . . . . 30 . . . 10 . Trap Triggered on 0b10 130 | . . . 30 . . . . . . 50 . . . . . . . . 10 . . . 10 . . . . . . . 30 . . . . . Successful Hack 652 | . 51 . 35 . . . . 30 16 133 . 113 . . . . 7 . 47 12 4 . 76 . . . . 61 . 34 . 16 . . 17 . Select Force Hacks 150 | . 60 . 60 . . . . . . 30 . . . . . . . . . . . . . . . . . . . . . . . . . . Disable Machine 885 | . 45 . 45 15 . 15 15 30 30 . . 120 . . . . . . 45 30 . . 150 . . . . 165 . . 15 75 15 45 15 15 Anti-Garrison Action 1550 | . . . . . . . . 450 . . . . . . . . 150 . . 450 . . . . . . . . . . 250 . . 250 . . Destroy Structure 1513 | . 42 . 15 27 . 28 16 119 13 16 12 50 . . . . . . 91 141 . 36 212 . . . . 108 . 14 51 162 12 217 14 117 Advance Influence 150 | . . . . . . . . . . . . . . . . . 150 . . . . . . . . . . . . . . . . . . . Partial Spotted 390 | . . . 15 . . . . . . 120 . 45 . . . . . . 45 30 . . 15 . . . . 15 . . . 60 15 . 30 . Lose Combat Pursuer 2145 | . 60 . 90 . . . 15 120 15 60 . 165 . 60 . . . . 510 15 . 30 270 . 45 105 . . . . 240 105 135 75 . 30 Miscellaneous 300 | . . . . . . . . . . . . . . . . . . . 100 . . . . . . . . . . . . 200 . . . . Influence Decreases 16625 | 20 397 326 680 543 146 198 31 175 1416 988 185 468 432 152 441 160 53 232 843 215 732 274 1113 568 422 348 253 565 260 114 193 1268 600 464 1106 244 Entered New Map 6982 | . . 120 . 277 146 . . 65 632 206 113 . 332 102 441 . 33 222 33 135 732 244 380 346 70 181 63 49 210 19 3 470 358 144 682 174 Time Decay 6591 | 20 397 206 530 246 . 198 31 . 474 486 63 268 100 50 . 160 20 10 530 . . . 553 222 342 157 170 349 50 95 . 428 222 . 214 . Search Patrol Dispatched 100 | . . . . . . . . . . . . . . . . . . . 100 . . . . . . . . . . . . . . . . . Lost Part 1000 | . . . . 20 . . . 70 10 10 . . . . . . . . 20 40 . 30 30 . 10 10 20 40 . . 190 70 20 320 20 70 Lost Ally 349 | . . . . . . . . 40 . . 9 200 . . . . . . 10 40 . . . . . . . 10 . . . . . . 40 . Purge Threat 1603 | . . . 150 . . . . . 300 286 . . . . . . . . 150 . . . 150 . . . . 117 . . . 300 . . 150 . Squads Dispatched 89 | . 3 . 4 . . . 3 . 3 9 . 12 . . . . 2 . 14 . 1 1 13 . . . . 8 . 1 . 7 3 . 5 . Investigation 39 | . 3 . 3 . . . 1 . . 4 . 7 . . . . . . 7 . 1 . 5 . . . . 3 . . . 2 1 . 2 . Extermination 21 | . . . . . . . . . . 3 . 1 . . . . . . 4 . . . 4 . . . . 2 . 1 . 2 2 . 2 . Reinforcement 18 | . . . 1 . . . 1 . 2 2 . 1 . . . . . . 1 . . 1 2 . . . . 3 . . . 3 . . 1 . Assault 9 | . . . . . . . . . . . . 3 . . . . 2 . 2 . . . 2 . . . . . . . . . . . . . Garrison 2 | . . . . . . . 1 . 1 . . . . . . . . . . . . . . . . . . . . . . . . . . . Intercept . | . . . . . . . . . . . . . . . . . . . . . . . . . . . . . . . . . . . . . Searches Triggered 1 | . . . . . . . . . . . . . . . . . . . 1 . . . . . . . . . . . . . . . . . Unchained Authorized 1 | . . . . . . . . . . . . . . . . . . . . . . . . . . . . 1 . . . . . . . . Construction Impeded 2 | . . . . . . . 1 . . . . . . . . . . . 1 . . . . . . . . . . . . . . . . . Haulers Reinforced 3 | . . . . . . . . . . . . 1 . . . . . . . . . . . . . . . 1 . . . 1 . . . . Active Scanning Responses . | . . . . . . . . . . . . . . . . . . . . . . . . . . . . . . . . . . . . . Cargo Convoy Interrupts 3 | . . . . . . . . . . 1 . . . . . . . . 1 . . . 1 . . . . . . . . . . . . . Stealth | -11 -10 -10 -9 -9 -9 -8 -8 -8 -8 -7 -7 -7 -7 -7 -7 -6 -6 -6 -6 -6 -6 -6 -5 -5 -5 -5 -4 -4 -4 -4 -4 -4 -3 -3 -3 -3 --------- Run | Yrd Mat Min Mat Min Exi Min Mat Gar Mat Fac Was Fac Low Low Zio Pro Fac Was Fac Gar Fac DSF Fac Upp Upp War Pro Fac Was Fac Gar Fac Res Gar Res Gar Distress Signals 23 | . 1 . 3 . . . 3 1 2 1 . 1 . . . . . . 2 . . . 2 . . 1 . . . . . 4 2 . . . Communications Jammed . | . . . . . . . . . . . . . . . . . . . . . . . . . . . . . . . . . . . . . Distress Signals . | . . . . . . . . . . . . . . . . . . . . . . . . . . . . . . . . . . . . . Times Spotted 655 | . 24 5 39 8 . 6 11 29 30 24 1 36 4 7 . 9 . 6 54 28 . 9 43 . 14 58 13 15 6 2 39 30 25 53 12 15 Peak Tracking Total 15 | . 6 3 6 3 . 3 5 4 3 4 1 10 3 7 . 4 . 6 13 8 . 3 6 . 3 15 6 3 6 1 9 6 7 8 4 7 Tactical Retreats 73 | . 2 . 5 . . . 1 5 1 3 . 6 . 2 . . . . 13 1 . 2 8 . 3 5 . . . . 5 4 3 2 . 2 ID Masks Used 1 | . . . . . . . . . . . . . . . . . . . . . . . . . . . . 1 . . . . . . . . IFF Responses 32 | . . . . . . . . . . . . . . . . . . . . . . . . . . . . 32 . . . . . . . . Traps | -11 -10 -10 -9 -9 -9 -8 -8 -8 -8 -7 -7 -7 -7 -7 -7 -6 -6 -6 -6 -6 -6 -6 -5 -5 -5 -5 -4 -4 -4 -4 -4 -4 -3 -3 -3 -3 ------- Run | Yrd Mat Min Mat Min Exi Min Mat Gar Mat Fac Was Fac Low Low Zio Pro Fac Was Fac Gar Fac DSF Fac Upp Upp War Pro Fac Was Fac Gar Fac Res Gar Res Gar Traps Triggered 65 | . 1 . . . . . 1 5 . 4 . 3 . . . . 3 . 6 10 . 2 2 . . . . 1 . . 8 4 4 8 3 . Indirectly 1 | . . . . . . . 1 . . . . . . . . . . . . . . . . . . . . . . . . . . . . . Trap Hack Attempts . | . . . . . . . . . . . . . . . . . . . . . . . . . . . . . . . . . . . . . Triggered . | . . . . . . . . . . . . . . . . . . . . . . . . . . . . . . . . . . . . . Disarmed . | . . . . . . . . . . . . . . . . . . . . . . . . . . . . . . . . . . . . . Reprogrammed 11 | . . . 6 . . . . . . 5 . . . . . . . . . . . . . . . . . . . . . . . . . . Reused 13 | . . . 3 . . . . . . 5 . . . . . . . . 1 . . . 1 . . . . . . . 3 . . . . . Traps Extracted 3 | . . . . . . . . . . 3 . . . . . . . . . . . . . . . . . . . . . . . . . . Installed 10 | . . . . . . . . . . 3 . . . . . . . . 2 . . . 2 . . . . . . . 3 . . . . . Triggered 13 | . . . 3 . . . . . . 5 . . . . . . . . 1 . . . 1 . . . . . . . 3 . . . . . Fabricated Traps 6 | . . . . . . . . . . . . . . . 6 . . . . . . . . . . . . . . . . . . . . . Most Traps Carried 7 | . . . . . . . . . . 3 . . . . 6 6 6 6 6 4 4 4 4 2 6 6 7 7 7 7 7 4 4 4 4 4 Machines | -11 -10 -10 -9 -9 -9 -8 -8 -8 -8 -7 -7 -7 -7 -7 -7 -6 -6 -6 -6 -6 -6 -6 -5 -5 -5 -5 -4 -4 -4 -4 -4 -4 -3 -3 -3 -3 ---------- Run | Yrd Mat Min Mat Min Exi Min Mat Gar Mat Fac Was Fac Low Low Zio Pro Fac Was Fac Gar Fac DSF Fac Upp Upp War Pro Fac Was Fac Gar Fac Res Gar Res Gar Machines Disabled 84 | . 3 . 3 1 . 1 1 8 2 . . 8 . 1 . . 1 . 3 10 . . 10 . 1 1 . 11 . . 5 5 1 6 1 1 Max in Single Turn 4 | . 1 . 1 1 . 1 1 2 1 . . . . 1 . . 1 . 2 1 . . 4 . 1 1 . 3 . . 1 4 1 1 . 1 Garrison Access 9 | . . . . . . . . . . 3 . 2 . . . . 1 . 2 . . . 1 . . . . . . . . . . . . . Garrison Relay 17 | . . . . . . . . 4 . . . . . . . . . . . 6 . . . . . . . . . . 4 . . 3 . . Phase Generator 1 | . . . . . . . . 1 . . . . . . . . . . . . . . . . . . . . . . . . . . . . Machines Repaired . | . . . . . . . . . . . . . . . . . . . . . . . . . . . . . . . . . . . . . Machines Dismantled 1 | . . . . . . . . . . . . . . . . . . . . . . . . . . 1 . . . . . . . . . . Machines Sabotaged . | . . . . . . . . . . . . . . . . . . . . . . . . . . . . . . . . . . . . . Overloaded Fab Kills . | . . . . . . . . . . . . . . . . . . . . . . . . . . . . . . . . . . . . . Hacking | -11 -10 -10 -9 -9 -9 -8 -8 -8 -8 -7 -7 -7 -7 -7 -7 -6 -6 -6 -6 -6 -6 -6 -5 -5 -5 -5 -4 -4 -4 -4 -4 -4 -3 -3 -3 -3 --------- Run | Yrd Mat Min Mat Min Exi Min Mat Gar Mat Fac Was Fac Low Low Zio Pro Fac Was Fac Gar Fac DSF Fac Upp Upp War Pro Fac Was Fac Gar Fac Res Gar Res Gar Machines Accessed 189 | . 9 . 16 . 2 . 1 4 8 24 . 23 1 . . . 3 . 22 2 2 . 14 3 2 5 1 13 . 8 1 12 5 2 6 . Terminals 104 | . 7 . 11 . . . . 4 6 12 . 13 . . . . 1 . 11 2 2 . 5 . 1 . 1 8 . 3 1 9 2 2 3 . Fabricators 20 | . . . . . . . . . . 3 . 3 . . . . . . 5 . . . 3 . . . . 1 . 2 . 1 1 . 1 . Repair Stations 4 | . . . 1 . . . . . 1 . . 1 . . . . . . . . . . . . . . . . . . . 1 . . . . Recycling Units 21 | . 2 . 2 . . . . . . 4 . 2 . . . . 1 . 2 . . . 3 . . . . 1 . 2 . . 1 . 1 . Scanalyzers 14 | . . . 2 . . . . . 1 2 . 2 . . . . . . 2 . . . 2 . . . . 2 . . . 1 . . . . Garrison Access 14 | . . . . . . . 1 . . 3 . 2 . . . . 1 . 2 . . . 1 . . . . 1 . 1 . . 1 . 1 . Total Hacks 535 | . 34 . 53 . 2 . 2 10 37 64 . 65 1 . . . 6 . 59 5 4 . 35 9 5 12 1 31 . 17 2 54 7 3 17 . Successful 311 | . 19 . 37 . 2 . 1 3 23 48 . 35 1 . . . 3 . 31 1 1 . 16 9 5 12 1 16 . 7 1 26 3 2 8 . Failed 219 | . 14 . 15 . . . 1 7 14 15 . 30 . . . . 3 . 28 4 3 . 19 . . . . 14 . 10 1 27 4 1 9 . Catastrophic 34 | . 1 . 1 . . . . 2 1 . . 2 . . . . . . 3 2 1 . 2 . . . . 6 . 2 1 6 2 . 2 . Database Lockouts 5 | . 1 . 1 . . . . . . 1 . . . . . . . . . . . . . . . . . 1 . . . 1 . . . . Manual 224 | . 30 . 34 . 1 . . 4 26 24 . 17 . 1 . . 3 . 21 1 1 . 16 . . . . 11 . 6 . 20 2 . 6 . Terminals 331 | . 31 . 36 . . . . 10 30 40 . 39 . . . . 2 . 29 5 4 . 16 . 4 . 1 19 . 6 2 42 2 3 10 . Fabricators 50 | . . . . . . . . . . 6 . 10 . . . . . . 13 . . . 7 . . . . 1 . 5 . 3 3 . 2 . Repair Stations 10 | . . . 2 . . . . . 2 . . 3 . . . . . . . . . . . . . . . . . . . 3 . . . . Recycling Units 47 | . 3 . 4 . . . . . . 9 . 3 . . . . 3 . 8 . . . 7 . . . . 2 . 5 . . 1 . 2 . Scanalyzers 46 | . . . 11 . . . . . 5 3 . 6 . . . . . . 4 . . . 4 . . . . 7 . . . 6 . . . . Garrison Access 26 | . . . . . . . 2 . . 6 . 4 . . . . 1 . 5 . . . 1 . . . . 2 . 1 . . 1 . 3 . Terminal Hacks 125 | . 6 . 8 . 2 . . 2 7 15 . 14 1 . . . 1 . 7 1 1 . 5 9 5 12 1 6 . 2 1 14 . 2 3 . Record 19 | . . . . . 1 . . . . . . . . . . . . . . . . . . 7 5 5 1 . . . . . . . . . Part Schematic 3 | . . . . . . . . . . 1 . 2 . . . . . . . . . . . . . . . . . . . . . . . . Robot Analysis 5 | . 3 . 1 . . . . . . . . 1 . . . . . . . . . . . . . . . . . . . . . . . . Prototype ID Bank 11 | . 1 . . . . . . . 1 1 . 1 . . . . . . 1 . . . . . . 6 . . . . . . . . . . Open Door 5 | . . . . . . . . . . . . . 1 . . . . . . . . . . 2 . 1 . . . . . . . 1 . . Open DSF 3 | . . . . . . . . . . . . . . . . . . . 1 . 1 . . . . . . . . . . 1 . . . . Branch Access Points 8 | . . . 2 . . . . . 1 1 . 1 . . . . 1 . . . . . . . . . . 1 . . . 1 . . . . Emergency Access Points 6 | . . . . . . . . 1 . . . 1 . . . . . . . 1 . . . . . . . 1 . . 1 . . 1 . . Machine Index 1 | . . . . . . . . . . 1 . . . . . . . . . . . . . . . . . . . . . . . . . . Terminal Index 7 | . 1 . 1 . . . . . . 1 . 1 . . . . . . . . . . 1 . . . . 1 . . . 1 . . . . Recycling Unit Index 1 | . . . . . . . . . . . . . . . . . . . . . . . . . . . . 1 . . . . . . . . Garrison Index 1 | . . . . . . . . . . 1 . . . . . . . . . . . . . . . . . . . . . . . . . . Alert Level 9 | . . . . . . . . . 2 . . 2 . . . . . . 1 . . . 1 . . . . . . . . 3 . . . . Unreport Threat 14 | . . . 1 . . . . . 2 2 . . . . . . . . 2 . . . 1 . . . . 1 . . . 4 . . 1 . Locate Traps 6 | . . . . . . . . . . . . 3 . . . . . . 1 . . . . . . . . 1 . 1 . . . . . . Reprogram Traps 3 | . . . 1 . . . . . . 2 . . . . . . . . . . . . . . . . . . . . . . . . . . Recall Investigation 2 | . . . 1 . . . . . . . . . . . . . . . . . . . . . . . . . . . . . . . 1 . Recall Reinforcements 2 | . . . . . . . . . . 1 . . . . . . . . . . . . . . . . . . . . . 1 . . . . Hauler Manifests 2 | . . . . . . . . . . 1 . . . . . . . . . . . . 1 . . . . . . . . . . . . . Registered Components 8 | . . . 1 . . . . . . 1 . 1 . . . . . . 1 . . . 1 . . . . . . 1 . 2 . . . . Zone Layout 7 | . 1 . . . . . . . 1 2 . 1 . . . . . . . . . . . . . . . . . . . 1 . . 1 . Garrison Registry 1 | . . . . . . . . 1 . . . . . . . . . . . . . . . . . . . . . . . . . . . . Proto ID Catalog 1 | . . . . . 1 . . . . . . . . . . . . . . . . . . . . . . . . . . . . . . . Fabricator Hacks 31 | . . . . . . . . . . 6 . 6 . . . . . . 7 . . . 4 . . . . 1 . 2 . 3 1 . 1 . Network Status 13 | . . . . . . . . . . 2 . 1 . . . . . . 2 . . . 3 . . . . 1 . 1 . 1 1 . 1 . Load Schematic 12 | . . . . . . . . . . 2 . 3 . . . . . . 4 . . . 1 . . . . . . 1 . 1 . . . . Build 6 | . . . . . . . . . . 2 . 2 . . . . . . 1 . . . . . . . . . . . . 1 . . . . Repair Station Hacks 7 | . . . 2 . . . . . 2 . . 1 . . . . . . . . . . . . . . . . . . . 2 . . . . Scan Component 4 | . . . 1 . . . . . 1 . . 1 . . . . . . . . . . . . . . . . . . . 1 . . . . Repair 3 | . . . 1 . . . . . 1 . . . . . . . . . . . . . . . . . . . . . . 1 . . . . Recycling Unit Hacks 15 | . 1 . 2 . . . . . . 4 . 1 . . . . 1 . 2 . . . 1 . . . . . . 1 . . 1 . 1 . Retrieve Components 15 | . 1 . 2 . . . . . . 4 . 1 . . . . 1 . 2 . . . 1 . . . . . . 1 . . 1 . 1 . Scanalyzer 32 | . . . 9 . . . . . 5 2 . 5 . . . . . . 3 . . . 1 . . . . 4 . . . 3 . . . . Insert Component 9 | . . . 2 . . . . . 2 . . 2 . . . . . . . . . . . . . . . 2 . . . 1 . . . . Analyze 9 | . . . 3 . . . . . 2 . . 2 . . . . . . . . . . . . . . . 1 . . . 1 . . . . Retrieve Study 14 | . . . 4 . . . . . 1 2 . 1 . . . . . . 3 . . . 1 . . . . 1 . . . 1 . . . . Garrison Access Hacks 12 | . . . . . . . 1 . . 3 . 2 . . . . . . 2 . . . 1 . . . . . . 1 . . 1 . 1 . Unlock Access 5 | . . . . . . . 1 . . . . . . . . . . . 1 . . . . . . . . . . 1 . . 1 . 1 . Seal Access 7 | . . . . . . . . . . 3 . 2 . . . . . . 1 . . . 1 . . . . . . . . . . . . . Unauthorized Hacks 89 | . 12 . 16 . . . . 1 9 18 . 6 . . . . 1 . 10 . . . 4 . . . . 5 . 1 . 4 . . 2 . Terminals 66 | . 10 . 14 . . . . 1 9 13 . 4 . . . . . . 5 . . . 1 . . . . 4 . . . 4 . . 1 . Track 3 | . . . 1 . . . . . . 1 . . . . . . . . 1 . . . . . . . . . . . . . . . . . Assimilate 5 | . . . . . . . . . . 1 . 1 . . . . . . 1 . . . . . . . . 1 . . . 1 . . . . Botnet 32 | . 4 . 6 . . . . . 3 5 . 3 . . . . . . 3 . . . 1 . . . . 3 . . . 3 . . 1 . Disrupt 1 | . . . 1 . . . . . . . . . . . . . . . . . . . . . . . . . . . . . . . . . Operators 2 | . . . 1 . . . . . 1 . . . . . . . . . . . . . . . . . . . . . . . . . . . Skim 22 | . 6 . 5 . . . . . 5 6 . . . . . . . . . . . . . . . . . . . . . . . . . . Override 1 | . . . . . . . . 1 . . . . . . . . . . . . . . . . . . . . . . . . . . . . Fabricators 4 | . . . . . . . . . . . . 1 . . . . . . 1 . . . 1 . . . . . . 1 . . . . . . Prioritize 2 | . . . . . . . . . . . . 1 . . . . . . 1 . . . . . . . . . . . . . . . . . Haulers 2 | . . . . . . . . . . . . . . . . . . . . . . . 1 . . . . . . 1 . . . . . . Repair Stations . | . . . . . . . . . . . . . . . . . . . . . . . . . . . . . . . . . . . . . Recycling Units 17 | . 2 . 1 . . . . . . 4 . 1 . . . . 1 . 4 . . . 2 . . . . 1 . . . . . . 1 . Monitor 2 | . . . . . . . . . . 1 . . . . . . . . 1 . . . . . . . . . . . . . . . . . Reject 3 | . . . . . . . . . . . . . . . . . . . 1 . . . 1 . . . . 1 . . . . . . . . Recyclers 6 | . . . . . . . . . . 1 . 1 . . . . 1 . 1 . . . 1 . . . . . . . . . . . 1 . Mask 2 | . . . . . . . . . . 1 . . . . . . . . 1 . . . . . . . . . . . . . . . . . Tunnel 4 | . 2 . 1 . . . . . . 1 . . . . . . . . . . . . . . . . . . . . . . . . . . Scanalyzers 1 | . . . 1 . . . . . . . . . . . . . . . . . . . . . . . . . . . . . . . . . Extract 1 | . . . 1 . . . . . . . . . . . . . . . . . . . . . . . . . . . . . . . . . Garrison Access 1 | . . . . . . . . . . 1 . . . . . . . . . . . . . . . . . . . . . . . . . . Watchers 1 | . . . . . . . . . . 1 . . . . . . . . . . . . . . . . . . . . . . . . . . Data Cores Recovered 8 | . . . 1 . . . . . 1 . . . . . . . . . 2 . . . 1 . . . . 1 . . . 1 . . 1 . Used 2 | . . . 1 . . . . . . . . . . . . . . . . . . . 1 . . . . . . . . . . . . . Hacking Detections 148 | . 7 . 14 . . . . 3 7 21 . 21 . . . . 2 . 17 2 2 . 11 . 1 . . 11 . 7 1 12 3 1 5 . Full Trace Events 27 | . . . 1 . . . . 1 1 3 . 7 . . . . . . 5 1 1 . 1 . . . . 2 . . 1 2 . . 1 . Feedback Events . | . . . . . . . . . . . . . . . . . . . . . . . . . . . . . . . . . . . . . Feedback Blocked . | . . . . . . . . . . . . . . . . . . . . . . . . . . . . . . . . . . . . . Robot Schematics Acquired . | . . . . . . . . . . . . . . . . . . . . . . . . . . . . . . . . . . . . . Robots Built . | . . . . . . . . . . . . . . . . . . . . . . . . . . . . . . . . . . . . . Authchips . | . . . . . . . . . . . . . . . . . . . . . . . . . . . . . . . . . . . . . Time . | . . . . . . . . . . . . . . . . . . . . . . . . . . . . . . . . . . . . . Total Robot Build Rating . | . . . . . . . . . . . . . . . . . . . . . . . . . . . . . . . . . . . . . Part Schematics Acquired 12 | . . . 4 . . . . . 2 1 . 4 . . . . . . . . . . . . . . . 1 . . . . . . . . Parts Built 9 | . . . . . . . . . . 2 . 3 . . . . . . 2 . . . . . . . . . . . . 2 . . . . Authchips . | . . . . . . . . . . . . . . . . . . . . . . . . . . . . . . . . . . . . . Time 362 | . . . . . . . . . . 96 . 177 . . . . . . 42 . . . . . . . . . . . . 47 . . . . Total Part Build Rating 39 | . . . . . . . . . . 6 . 15 . . . . . . 8 . . . . . . . . . . . . 10 . . . . Part Studies Acquired 14 | . . . 4 . . . . . 1 2 . 1 . . . . . . 3 . . . 1 . . . . 1 . . . 1 . . . . Parts Repaired 2 | . . . 1 . . . . . 1 . . . . . . . . . . . . . . . . . . . . . . . . . . . Time 190 | . . . 16 . . . . . 38 . . . . . . . . . . . . . . . . . . . . . . 136 . . . . Parts Recycled . | . . . . . . . . . . . . . . . . . . . . . . . . . . . . . . . . . . . . . Recycled Matter . | . . . . . . . . . . . . . . . . . . . . . . . . . . . . . . . . . . . . . Retrieved Matter . | . . . . . . . . . . . . . . . . . . . . . . . . . . . . . . . . . . . . . Retrieved Components 58 | . 2 . 18 . . . . . . 18 . 2 . . . . 1 . 5 . . . 1 . . . . . . 3 . . . . 8 . Parts Scanalyzed 8 | . . . 2 . . . . . 2 . . 2 . . . . . . . . . . . . . . . 1 . . . 1 . . . . Part Schematics Acquired 7 | . . . 2 . . . . . 2 . . 2 . . . . . . . . . . . . . . . 1 . . . . . . . . Parts Damaged . | . . . . . . . . . . . . . . . . . . . . . . . . . . . . . . . . . . . . . Bothacking | -11 -10 -10 -9 -9 -9 -8 -8 -8 -8 -7 -7 -7 -7 -7 -7 -6 -6 -6 -6 -6 -6 -6 -5 -5 -5 -5 -4 -4 -4 -4 -4 -4 -3 -3 -3 -3 ------------ Run | Yrd Mat Min Mat Min Exi Min Mat Gar Mat Fac Was Fac Low Low Zio Pro Fac Was Fac Gar Fac DSF Fac Upp Upp War Pro Fac Was Fac Gar Fac Res Gar Res Gar Used RIF Installer . | . . . . . . . . . . . . . . . . . . . . . . . . . . . . . . . . . . . . . Robots Hacked 9 | . . . . . . . . . . . . . . . . . . . . . . . . . . 9 . . . . . . . . . . Non-combat . | . . . . . . . . . . . . . . . . . . . . . . . . . . . . . . . . . . . . . Combat 9 | . . . . . . . . . . . . . . . . . . . . . . . . . . 9 . . . . . . . . . . Robot Hacks Applied 9 | . . . . . . . . . . . . . . . . . . . . . . . . . . 9 . . . . . . . . . . parse_system 9 | . . . . . . . . . . . . . . . . . . . . . . . . . . 9 . . . . . . . . . . Relay Couplers Released 74 | . . . . . . . . 17 . . . . . . . . . . 2 26 . . . . . . . . . . 16 . . 13 . . Machine Destruction 74 | . . . . . . . . 17 . . . . . . . . . . 2 26 . . . . . . . . . . 16 . . 13 . . Fabnet Peak Effective % . | . . . . . . . . . . . . . . . . . . . . . . . . . . . . . . . . . . . . . Robots Rewired 8 | . . . . . . . . . . . . . . . . . . . 1 2 . . . . . . . . . . 3 . . 2 . . Allies Hacked 3 | . . . . . . . . . . . . . . . . 1 . . . . . . . . . . . . . . 1 . . . 1 . Hacks Repelled . | . . . . . . . . . . . . . . . . . . . . . . . . . . . . . . . . . . . . . Allies | -11 -10 -10 -9 -9 -9 -8 -8 -8 -8 -7 -7 -7 -7 -7 -7 -6 -6 -6 -6 -6 -6 -6 -5 -5 -5 -5 -4 -4 -4 -4 -4 -4 -3 -3 -3 -3 -------- Run | Yrd Mat Min Mat Min Exi Min Mat Gar Mat Fac Was Fac Low Low Zio Pro Fac Was Fac Gar Fac DSF Fac Upp Upp War Pro Fac Was Fac Gar Fac Res Gar Res Gar Total Allies 37 | . . . . . . . . 2 . . 20 1 . . 4 . . . 1 2 . . . . . . . 1 . . 3 1 . 2 . . Largest Group 20 | . . . . . . . . 2 . . 20 14 . . 4 4 3 . 1 2 . . . . . . . 1 . . 3 1 . 2 2 . Highest-Rated Group 550 | . . . . . . . . 70 . . 550 379 . . 102 102 71 . 40 201 . . . . . . . 10 . . 141 26 . 97 97 . Highest-Rated Ally 116 | . . . . . . . . 39 . . 35 35 . . 31 31 31 . 40 116 . . . . . . . 10 . . 47 26 . 51 51 . Initial Warlord ECA Mod 37 | . . . . . . . . . 9 8 8 8 8 8 8 7 7 7 7 7 17 17 26 26 26 26 25 25 25 25 25 31 30 30 37 37 Total Orders 5 | . . . . . . . . . . . . . . . . . . . 1 . . . . . . . . 2 . . . 2 . . . . STAY 3 | . . . . . . . . . . . . . . . . . . . 1 . . . . . . . . 1 . . . 1 . . . . FOLLOW 2 | . . . . . . . . . . . . . . . . . . . . . . . . . . . . 1 . . . 1 . . . . Ally Attacks 246 | . . . . . . . . 19 . . 27 123 . . . 21 . . . 14 . . . . . . . . . . 24 . . . 18 . Total Damage 8006 | . . . . . . . . 225 . . 2048 3368 . . . 387 . . . 897 . . . . . . . . . . 723 . . . 358 . Kills 49 | . . . . . . . . 3 . . 6 32 . . . 2 . . . 2 . . . . . . . . . . 2 . . . 2 . Allies Corrupted 1 | . . . . . . . . . . . . 1 . . . . . . . . . . . . . . . . . . . . . . . . Allies Melted 1 | . . . . . . . . . . . . . . . . . . . . . . . . . . 1 . . . . . . . . . . Intel | -11 -10 -10 -9 -9 -9 -8 -8 -8 -8 -7 -7 -7 -7 -7 -7 -6 -6 -6 -6 -6 -6 -6 -5 -5 -5 -5 -4 -4 -4 -4 -4 -4 -3 -3 -3 -3 ------- Run | Yrd Mat Min Mat Min Exi Min Mat Gar Mat Fac Was Fac Low Low Zio Pro Fac Was Fac Gar Fac DSF Fac Upp Upp War Pro Fac Was Fac Gar Fac Res Gar Res Gar Active Infowar (turns) 20510 | 12 886 487 1070 506 26 . 159 371 1146 1380 246 588 219 100 550 326 58 27 1489 1244 18 398 1605 479 763 1050 359 869 100 249 1058 1041 467 499 432 233 Optics 12614 | . . . . . . . 159 371 . . . . . . . . . . 1469 1244 18 398 1605 479 763 1050 359 869 100 249 1058 1041 467 499 183 233 Sensors 2 | . . . . . . . . . . . . . . . . . . . . . . . . . . . . . . . . 2 . . . . IFF 1439 | . . . . . . . . . . . . . . . . . . . . . . . 1 479 763 196 . . . . . . . . . . Terrain 3173 | . . . . . . . . 8 1146 160 . . . . . . . . 457 . . . . . . . . . . 99 4 730 79 . 431 59 Seismic 2987 | 12 886 487 1070 506 26 . . . . . . . . . . . . . . . . . . . . . . . . . . . . . . . T.N.C. 4967 | . . . . . . . . . . 1220 246 588 219 100 550 326 58 27 1489 21 . . 19 . . . . . . . . 104 . . . . Machine Analysis 218 | . . . . . . . . . . . . . . . . . . . 218 . . . . . . . . . . . . . . . . . Cloaking 972 | . . . . . . . . . . . . . . . . . . . . . . . . . . 2 4 305 100 249 19 18 221 . 2 52 Spoofing 2 | . . . . . . . . . . . . . . . . . . . . . . . . . . . . . . . . . . . . 2 Jamming 240 | . . . . . . . . . . . . . . . . . . . . . . 147 93 . . . . . . . . . . . . . ID Mask 184 | . . . . . . . . . . . . . . . . . . . . . . . . . . . . 184 . . . . . . . . Robot Analysis Total 5 | . 3 . 1 . . . . . . . . 1 . . . . . . . . . . . . . . . . . . . . . . . . Derelict Logs Recovered 12 | . . 2 . 1 . . . . . . . . . 2 2 2 . . . . . . . 1 1 . 1 . . . . . . . . . Drone Launches . | . . . . . . . . . . . . . . . . . . . . . . . . . . . . . . . . . . . . . Drone Recoveries . | . . . . . . . . . . . . . . . . . . . . . . . . . . . . . . . . . . . . . Exploration | -11 -10 -10 -9 -9 -9 -8 -8 -8 -8 -7 -7 -7 -7 -7 -7 -6 -6 -6 -6 -6 -6 -6 -5 -5 -5 -5 -4 -4 -4 -4 -4 -4 -3 -3 -3 -3 ------------- Run | Yrd Mat Min Mat Min Exi Min Mat Gar Mat Fac Was Fac Low Low Zio Pro Fac Was Fac Gar Fac DSF Fac Upp Upp War Pro Fac Was Fac Gar Fac Res Gar Res Gar Turns Passed 24374 | 94 944 537 1587 524 269 621 170 1320 1208 1456 246 588 219 100 550 326 58 27 1489 1244 18 398 1605 479 763 1050 359 869 100 249 1058 1050 467 1641 458 233 Spaces Moved 32226 | 59 652 401 1270 523 317 629 82 633 723 2797 275 1605 877 424 1037 965 122 131 2835 1493 34 370 2107 1075 1344 1247 599 1126 212 437 834 1498 817 1427 1040 209 Core 128 | 1 . . . . . . . . . . . . . . . . . . . . . . . . . . . . . . . . . 127 . . Treads . | . . . . . . . . . . . . . . . . . . . . . . . . . . . . . . . . . . . . . Legs 1175 | . . . . . . . . 33 723 . . . . . . . . . . . . . . . . . . . . . . . . 377 . 42 Wheels 4179 | 58 652 401 1270 523 317 629 82 247 . . . . . . . . . . . . . . . . . . . . . . . . . . . . Hover 16330 | . . . . . . . . 353 . 1558 . . . . . . . . 1100 1493 34 370 2107 1075 1344 1247 599 1126 212 437 834 1498 817 126 . . Flight 10414 | . . . . . . . . . . 1239 275 1605 877 424 1037 965 122 131 1735 . . . . . . . . . . . . . . 797 1040 167 Fastest Speed 12 | 50 90 105 76 76 70 85 91 91 123 19 19 19 19 19 19 19 19 19 12 48 52 52 43 43 43 43 43 31 41 41 41 26 30 22 21 27 Average Speed 48 | 90 97 105 82 85 83 87 91 134 123 31 20 20 19 19 21 19 19 19 33 49 52 52 51 43 45 44 43 42 41 41 73 37 35 66 22 47 Slowest Speed 315 | 100 105 105 105 100 85 91 91 260 193 179 22 22 19 19 96 19 19 19 66 56 52 53 53 43 48 48 44 113 41 41 119 102 104 260 102 315 Overloaded Moves 53 | . . . . . . . . . . . . . . . . . . . 15 . . . . . . . . 3 . . 3 32 . . . . Propulsion Burnouts . | . . . . . . . . . . . . . . . . . . . . . . . . . . . . . . . . . . . . . Robots Hopped 39 | . . . . . . . . . . 3 . 18 . . . . . . 10 . . . . . . . . . . . . . . . 7 1 Potential Cave-ins 6 | . . . . . . . . . . . . . . . . . . . . . . . . . . . . . . . . 6 . . . . Cave-ins Triggered . | . . . . . . . . . . . . . . . . . . . . . . . . . . . . . . . . . . . . . Exploration Rate (%) 63 | 3 84 67 95 86 65 97 16 78 69 50 95 47 87 66 84 91 6 77 62 80 2 95 50 91 98 92 82 31 98 15 80 45 24 81 29 18 Regions Visited 36 Branch Regions 12 Pre-discovered Areas 13 | . 3 . 5 . 1 . . . . 1 . . 1 . 1 . . . . . . . . . . . 1 . . . . . . . . . Known Exits Taken 16 | . . 1 1 . . 1 1 . 1 . . 1 1 . . 1 . . 1 . 1 . 1 . . . 1 . . 1 . 1 1 . 1 . Unknown Exits Taken 9 | 1 1 . . 1 1 . . . . . . . . 1 1 . . . . . . . . 1 1 1 . . . . . . . . . . Scrap Searched 20 | . . . . 1 . 3 . . . . . . 1 4 4 3 . . . . . . . 1 2 . 1 . . . . . . . . . Spaces Dug 366 | . . . 12 14 . . . . 5 15 . 9 20 . . 2 . . 46 46 . 6 41 . 2 . 1 12 . 7 3 98 6 7 7 7 Terrain Destroyed 1287 | . 37 . 12 34 . 36 23 85 10 16 . 10 20 . . 34 . . 94 84 . 38 117 . 7 54 212 59 . 7 3 98 6 71 7 113 Melee 160 | . . . 1 . . . . . 1 14 . 8 . . . 2 . . 39 8 . 5 22 . 1 . 1 2 . 7 3 24 6 2 7 7 Projectile 166 | . . . . . . . . . . 2 . 2 . . . 1 . . 8 5 . 1 6 . 6 3 15 41 . . . 13 . 49 . 14 AOE 961 | . 37 . 11 34 . 36 23 85 9 . . . 20 . . 31 . . 47 71 . 32 89 . . 51 196 16 . . . 61 . 20 . 92 Terrain Rammed . | . . . . . . . . . . . . . . . . . . . . . . . . . . . . . . . . . . . . . Walls Destroyed . | . . . . . . . . . . . . . . . . . . . . . . . . . . . . . . . . . . . . . Machines Disabled . | . . . . . . . . . . . . . . . . . . . . . . . . . . . . . . . . . . . . . Actions | -11 -10 -10 -9 -9 -9 -8 -8 -8 -8 -7 -7 -7 -7 -7 -7 -6 -6 -6 -6 -6 -6 -6 -5 -5 -5 -5 -4 -4 -4 -4 -4 -4 -3 -3 -3 -3 --------- Run | Yrd Mat Min Mat Min Exi Min Mat Gar Mat Fac Was Fac Low Low Zio Pro Fac Was Fac Gar Fac DSF Fac Upp Upp War Pro Fac Was Fac Gar Fac Res Gar Res Gar Total 38831 | 76 885 489 1608 577 323 676 148 907 916 3254 464 1811 925 441 1362 1077 156 132 3234 1845 34 518 2471 1089 1452 1714 649 1410 225 496 1213 1893 964 1909 1202 286 Wait 3256 | . 148 63 123 29 . 16 38 40 66 209 188 178 43 15 299 80 . . 189 188 . 57 139 6 63 372 7 149 4 39 101 171 75 85 55 21 Move 32122 | 58 651 400 1269 522 316 628 81 632 722 2791 274 1569 876 423 1036 964 122 130 2815 1492 34 369 2106 1074 1343 1246 598 1126 211 437 833 1497 816 1426 1028 207 Hop 36 | . . . . . . . . . . 3 . 17 . . . . . . 10 . . . . . . . . . . . . . . . 5 1 Pick Up 213 | 1 14 3 20 1 2 3 2 8 11 22 1 3 1 1 1 . . . 12 4 . 1 23 . 3 7 1 14 3 . 4 14 1 29 2 1 Fast Attach 386 | 7 8 . 8 2 . 1 2 20 16 31 . 7 . . 10 4 1 1 37 6 . 14 28 3 1 11 3 13 2 4 24 48 6 48 12 8 Attach 104 | . . . 6 1 2 2 . 3 1 16 . 3 . . 2 . 1 . 3 3 . . 7 . 1 2 2 8 . . 5 9 2 15 5 5 Detach 54 | . 1 . 1 . 2 . . 1 1 5 . 2 . . 1 . 1 . 1 . . . 4 . . 3 1 2 . 1 3 5 1 13 2 3 Swap 252 | . 10 5 23 6 . 6 2 14 9 10 . 3 2 . 2 2 . . 11 7 . 8 21 3 13 12 12 20 . 3 6 20 5 12 5 . Drop 474 | . 13 2 29 3 1 5 1 24 25 59 1 8 1 1 11 4 . 1 45 7 . 13 38 3 4 19 1 21 5 2 11 42 7 45 19 3 Fire 795 | 10 40 16 125 13 . 15 22 120 63 38 . 2 1 . . 17 1 . 25 27 . 4 27 . 11 33 19 30 . . 1 16 . 103 . 16 Melee 676 | . . . 4 . . . . 8 1 52 . 19 1 1 . 5 . . 52 76 . 29 76 . 13 . 5 27 . 10 97 71 32 37 39 21 Ram . | . . . . . . . . . . . . . . . . . . . . . . . . . . . . . . . . . . . . . Kick 1 | . . . . . . . . . 1 . . . . . . . . . . . . . . . . . . . . . . . . . . . Crush . | . . . . . . . . . . . . . . . . . . . . . . . . . . . . . . . . . . . . . Escape Stasis 373 | . . . . . . . . 37 . 15 . . . . . . 30 . 30 35 . 23 . . . . . . . . 104 . 19 50 30 . Rewire 71 | . . . . . . . . . . . . . . . . 1 . . 2 . . . . . . 1 . . . . 21 . . 46 . . Trap 10 | . . . . . . . . . . 3 . . . . . . . . 2 . . . 2 . . . . . . . 3 . . . . . Miscellaneous 8 | . . . . . . . . . . . . . . . . . . . . . . . . . . 8 . . . . . . . . . . Route ------- -11/Scrapyard -10/Materials (discovered 6 exits: *Mat x3 / [*Min x2] / Sub) -10/Mines (discovered 2 exits: *Mat x2) -9/Materials (discovered 4 exits: *Mat x3 / *Min) -9/Mines -9/Exiles -8/Mines (discovered 2 exits: *Mat x2) -8/Materials -8/Garrison (discovered 3 exits: *Mat x3) -8/Materials (discovered 3 exits: *Fac x3) -7/Factory (discovered 8 exits: *Fac x4 / *Sto x2 / *Low x2) -7/Waste -7/Factory (discovered 5 exits: *Fac / Sto x2 / *Low x2) -7/Lower Caves -7/Lower Caves (discovered 2 exits: *Fac / [*Zio]) -7/Zion (discovered 2 exits: Dee / [*Pro]) -6/Proximity Caves -6/Factory (discovered 2 exits: Low x2) -6/Waste -6/Factory (discovered 5 exits: *Fac x2 / *Low x2 / Gar) -6/Garrison (discovered 3 exits: *Fac x3) -6/Factory -6/DSF -5/Factory (discovered 3 exits: *Upp / Ext x2) -5/Upper Caves (discovered 2 exits: *Upp / *War) -5/Upper Caves (discovered 2 exits: *Fac / *War) -5/Warlord -4/Proximity Caves -4/Factory (discovered 4 exits: Res / *Upp x2 / Arm) -4/Waste -4/Factory -4/Garrison (discovered 3 exits: *Res x2 / *Fac) -4/Factory (discovered 4 exits: *Res / *Upp x2 / Arm) -3/Research (discovered 2 exits: [*Res] / Gar) -3/Garrison (discovered 3 exits: *Res x3) -3/Research (discovered 2 exits: [*Tes] / Gar) -3/Garrison History --------- Turn | Location | Event 18 | -11/Scrapyard | Discovered new exit (range 16) 95 | -11/Scrapyard | Entered Materials 173 | -10/Materials | Destroyed 9 combat bots 282 | -10/Materials | Discovered new exit (range 4) 308 | -10/Materials | Build established: Mutant 356 | -10/Materials | Discovered new exit (range 12) 571 | -10/Materials | Discovered new exit (range 13) 666 | -10/Materials | Discovered new exit (range 10) 730 | -10/Materials | Identified exit to Materials 779 | -10/Materials | Central database locked down 787 | -10/Materials | Discovered new exit (range 5) 825 | -10/Materials | Learned Storage security intel 860 | -10/Materials | Learned 2 Storage zone layouts 887 | -10/Materials | Learned location of 2 exits from Subcaves 905 | -10/Materials | Loaded intel: 11 trap records 914 | -10/Materials | Identified exit to Subcaves 931 | -10/Materials | Learned Materials trap positions 1039 | -10/Materials | Entered Mines 1204 | -10/Mines | Found a Scrap Suit stashed away for nefarious purposes 1207 | -10/Mines | Found Scrap Suit 1271 | -10/Mines | Learned Materials emergency access door positions 1272 | -10/Mines | Learned 2 Materials zone layouts 1440 | -10/Mines | Assembled infested the area 1445 | -10/Mines | Assisted by a Guerilla fighting off Assembled 1576 | -10/Mines | Entered Materials 1576 | -9/Materials | Evolved 2 slots: Propulsion x1, Utility x1 1577 | -9/Materials | Identified exit to Materials 1578 | -9/Materials | Loaded intel: 25 trap records 1867 | -9/Materials | Identified exit to Mines 1912 | -9/Materials | Repaired Autogun 2377 | -9/Materials | Discovered exit to Materials (range 14) 2425 | -9/Materials | Central database locked down 2663 | -9/Materials | Learned location of Zion (-7) 2665 | -9/Materials | Learned Storage trap positions 3163 | -9/Materials | Entered Mines 3214 | -9/Mines | Met a Derelict bent on vengeance 3253 | -9/Mines | Learned 2 Materials zone layouts 3363 | -9/Mines | Build established: Scavenger-Mutant 3575 | -9/Mines | Received a Rocket Launcher from a helpful Derelict 3583 | -9/Mines | Deemed a non-threat by the Exiles lab entrance 3583 | -9/Mines | Discovered new exit (range 5) 3687 | -9/Mines | Entered Exiles 3706 | -9/Exiles | Met 8R-AWN 3738 | -9/Exiles | Met EX-HEX 3771 | -9/Exiles | Met EX-DEC 3789 | -9/Exiles | Met EX-BIN 3801 | -9/Exiles | Aligned with FarCom system 3802 | -9/Exiles | Given EX-Vault access code 3822 | -9/Exiles | Opened EX-Vault 3829 | -9/Exiles | Found Modified TNC 3848 | -9/Exiles | Warned to stay clear of 0b10 Research branches 3947 | -9/Exiles | Discovered new exit (range 12) 3956 | -9/Exiles | Left Exiles lab with Modified TNC 3956 | -9/Exiles | Entered Mines 4203 | -8/Mines | Discovered exit to Materials (range 8) 4300 | -8/Mines | Build established: Mutant 4540 | -8/Mines | Discovered exit to Materials (range 5) 4577 | -8/Mines | Entered Materials 4577 | -8/Materials | Evolved 2 slots: Utility x2 4647 | -8/Materials | Build established: Scavenger-Mutant 4666 | -8/Materials | Garrison activated, responded to threat 4735 | -8/Materials | Destroyed 7 combat bots 4745 | -8/Materials | Identified exit to Garrison 4747 | -8/Materials | Entered Garrison 4858 | -8/Garrison | Triggered checkpoint 4928 | -8/Garrison | Discovered new exit (range 23) 4928 | -8/Garrison | Discovered new exit (range 43) 4928 | -8/Garrison | Discovered new exit (range 47) 4963 | -8/Garrison | Triggered checkpoint 4974 | -8/Garrison | Garrison Relay disabled 5049 | -8/Garrison | Lost 4 parts (2n2u) 5147 | -8/Garrison | Identified exit to Materials 5213 | -8/Garrison | Triggered checkpoint 5256 | -8/Garrison | Core integrity fell below 50% 5455 | -8/Garrison | Build established: Mutant 5521 | -8/Garrison | Triggered checkpoint 5659 | -8/Garrison | Rescued a captive Derelict 5665 | -8/Garrison | Rescued a captive Derelict 5687 | -8/Garrison | Triggered checkpoint 5706 | -8/Garrison | Garrison Relay disabled 5900 | -8/Garrison | Phase Generator disabled 5945 | -8/Garrison | Triggered checkpoint 6012 | -8/Garrison | Garrison Relay disabled 6029 | -8/Garrison | Garrison Relay disabled 6067 | -8/Garrison | Entered Materials 6296 | -8/Materials | Repaired Hrd. Medium Armor Plating 6422 | -8/Materials | Build established: Scavenger-Skirmisher 6658 | -8/Materials | Discovered new exit (range 13) 6866 | -8/Materials | Garrison activated, responded to threat 7082 | -8/Materials | Discovered new exit (range 13) 7143 | -8/Materials | Learned location of 1 exit from Lower Caves 7192 | -8/Materials | Identified exit to Factory 7230 | -8/Materials | Learned 4 Factory zone layouts 7275 | -8/Materials | Entered Factory 7275 | -7/Factory | Evolved 2 slots: Propulsion x2 7276 | -7/Factory | Identified exit to Factory 7276 | -7/Factory | Identified exit to Storage 7385 | -7/Factory | Watched by a mysterious "MATRIX" hacker. 7412 | -7/Factory | Discovered new exit (range 12) 7443 | -7/Factory | Fabricated Imp. VTOL Module? 7661 | -7/Factory | Fabricated Aerolev Unit (x1) 7787 | -7/Factory | Discovered exit to Storage (range 11) 7811 | -7/Factory | Central database locked down 7846 | -7/Factory | Identified exit to Lower Caves 8021 | -7/Factory | Loaded intel: 4 garrison access locations 8022 | -7/Factory | Build established: Hacker-Mutant 8066 | -7/Factory | Learned 4 Proximity Caves zone layouts 8101 | -7/Factory | Learned location of 1 exit from Extension 8127 | -7/Factory | Loaded intel: 4 scanalyzer locations 8144 | -7/Factory | Learned Extension stockpile data 8152 | -7/Factory | Learned 8 Factory zone layouts 8158 | -7/Factory | Learned Hub_04(d) interactive machine intel 8171 | -7/Factory | Learned Factory garrison access intel 8196 | -7/Factory | Learned location of 1 exit from Proximity Caves 8508 | -7/Factory | Cargo convoy interrupted 8731 | -7/Factory | Manually triggered Chute Trap 8731 | -7/Factory | Sucked down chute 8731 | -7/Factory | Entered Waste 8732 | -7/Waste | Joined by Warlord forces that had cleared the area 8826 | -7/Waste | Discovered new exit (range 16) 8891 | -7/Waste | A Compactor rumbled back to life 8891 | -7/Waste | Spotted C-40 Crusher 8895 | -7/Waste | Allies destroyed C-40 Crusher 8926 | -7/Waste | Lost 6 allies 8972 | -7/Waste | Build established: Hacker-Sprinter 8977 | -7/Waste | Entered Factory 8977 | -7/Factory | Accompanied by 14 allies 8979 | -7/Factory | Loaded intel: 4 garrison access locations 9168 | -7/Factory | Lost 3 allies 9309 | -7/Factory | Fabricated System Restoration Module (x2) 9377 | -7/Factory | First assault squad dispatched 9493 | -7/Factory | Fabricated Adv. KE Penetrator? 9536 | -7/Factory | Lost 4 allies 9565 | -7/Factory | Entered Lower Caves 9566 | -7/Lower Caves | Identified exit to Lower Caves 9572 | -7/Lower Caves | Met a Warlord Commander 9573 | -7/Lower Caves | Learned location of Warlord (-5) 9574 | -7/Lower Caves | Warlord Commander delivered Encrypted Comm Array 9574 | -7/Lower Caves | Found Encrypted Comm Array 9733 | -7/Lower Caves | Attracted the attention of an 0b10 checkpoint 9784 | -7/Lower Caves | Entered another Lower Caves area 9791 | -7/Lower Caves | Discovered exit to Factory (range 12) 9792 | -7/Lower Caves | Encountered a Warlord checkpoint 9794 | -7/Lower Caves | Learned 4 Factory zone layouts 9808 | -7/Lower Caves | Acquired the password to a Derelict Tinkerer's latest research 9814 | -7/Lower Caves | Learned Factory garrison access intel 9874 | -7/Lower Caves | Attracted the attention of an 0b10 checkpoint 9882 | -7/Lower Caves | Discovered new exit (range 9) 9884 | -7/Lower Caves | Entered Zion 9886 | -7/Zion | Learned Factory emergency access door positions 9894 | -7/Zion | Discovered new exit (range 7) 9932 | -7/Zion | Gained Derelict followers 9936 | -7/Zion | Received a hallucinogenic algorithm 9944 | -7/Zion | Found Prototype Device 9944 | -7/Zion | Identified Bomb Factory No. 2 10176 | -7/Zion | Found CR-A16's Pointy Stick 10193 | -7/Zion | Identified exit to Deep Caves 10434 | -7/Zion | Entered Proximity Caves 10434 | -6/Proximity Caves | Accompanied by 4 allies 10436 | -6/Proximity Caves | Attracted the attention of an 0b10 checkpoint 10495 | -6/Proximity Caves | Learned Factory garrison access intel 10514 | -6/Proximity Caves | Learned location of 1 exit from Lower Caves 10516 | -6/Proximity Caves | Spotter reported a threat 10576 | -6/Proximity Caves | Build established: Sprinter 10760 | -6/Proximity Caves | Entered Factory 10760 | -6/Factory | Accompanied by 3 allies 10760 | -6/Factory | Evolved 2 slots: Utility x2 10761 | -6/Factory | Identified exit to Lower Caves 10763 | -6/Factory | Loaded intel: 4 garrison access locations 10818 | -6/Factory | Sucked down chute 10818 | -6/Factory | Entered Waste 10828 | -6/Waste | Spotted C-40 Crusher 10833 | -6/Waste | EMP discharged 10834 | -6/Waste | Spotted C-40 Crusher 10835 | -6/Waste | Spotted C-40 Crusher 10839 | -6/Waste | Spotted C-40 Crusher 10839 | -6/Waste | Spotted C-40 Crusher 10841 | -6/Waste | Discovered new exit (range 12) 10841 | -6/Waste | Spotted C-40 Crusher 10845 | -6/Waste | Identified exit to Factory 10845 | -6/Waste | Entered Factory 10846 | -6/Factory | Loaded intel: 3 garrison access locations 10879 | -6/Factory | Targeted by mysterious "MATRIX" hacker. 10950 | -6/Factory | Discovered exit to Lower Caves (range 8) 11157 | -6/Factory | Build established: Hacker-Scout 11195 | -6/Factory | Fabricated System Restoration Module? 11292 | -6/Factory | Discovered new exit (range 18) 11363 | -6/Factory | Discovered exit to Lower Caves (range 9) 11492 | -6/Factory | Found Prototype Processor 11492 | -6/Factory | Identified Exp. Targeting Computer 11498 | -6/Factory | Allied Derelicts emerged from ambush trap array 11570 | -6/Factory | Discovered new exit (range 22) 11617 | -6/Factory | Cargo convoy interrupted 11781 | -6/Factory | Spotted B-75 Beast 12245 | -6/Factory | Search patrols dispatched 12334 | -6/Factory | Identified exit to Garrison 12334 | -6/Factory | Entered Garrison 12354 | -6/Garrison | Triggered checkpoint 12354 | -6/Garrison | Triggered checkpoint 12356 | -6/Garrison | System corruption reached 10% 12363 | -6/Garrison | Triggered checkpoint 12395 | -6/Garrison | Destroyed 15 combat bots 12414 | -6/Garrison | Triggered checkpoint 12417 | -6/Garrison | Garrison Relay disabled 12485 | -6/Garrison | Triggered checkpoint 12535 | -6/Garrison | Destroyed 7 combat bots 12546 | -6/Garrison | Discovered new exit (range 12) 12551 | -6/Garrison | Identified exit to Factory 12570 | -6/Garrison | Garrison Relay disabled 12637 | -6/Garrison | Build established: Mutant 12655 | -6/Garrison | Spotted B-75 Beast 12724 | -6/Garrison | Spotted B-75 Beast 12724 | -6/Garrison | Rewired B-75 Beast 12728 | -6/Garrison | Rewired B-86 Titan 12740 | -6/Garrison | Destroyed B-75 Beast 12744 | -6/Garrison | Allies destroyed B-75 Beast 12816 | -6/Garrison | Discovered exit to Factory (range 11) 12834 | -6/Garrison | Garrison Relay disabled 12944 | -6/Garrison | Triggered checkpoint 12996 | -6/Garrison | Core integrity fell below 50% 13118 | -6/Garrison | Garrison Relay disabled 13128 | -6/Garrison | Discovered exit to Factory (range 11) 13170 | -6/Garrison | Triggered checkpoint 13170 | -6/Garrison | Garrison Relay disabled 13268 | -6/Garrison | Triggered checkpoint 13305 | -6/Garrison | Garrison Relay disabled 13578 | -6/Garrison | Entered Factory 13596 | -6/Factory | Identified exit to DSF 13596 | -6/Factory | Entered DSF 13615 | -6/DSF | Found Powered Armor 13629 | -6/DSF | Additional patrols routed to DSF 13722 | -6/DSF | Found Powered Armor 13724 | -6/DSF | Found Powered Armor 13727 | -6/DSF | Found Powered Armor 13738 | -6/DSF | Discovered new exit (range 22) 13976 | -6/DSF | Sterilization system engaged 13994 | -6/DSF | Entered Factory 13994 | -5/Factory | Evolved 2 slots: Utility x1, Weapon x1 13995 | -5/Factory | Identified exit to Extension 14294 | -5/Factory | First assault squad dispatched 14415 | -5/Factory | Build established: Hacker-Gladiator 14769 | -5/Factory | Discovered new exit (range 19) 15050 | -5/Factory | Identified exit to Upper Caves 15340 | -5/Factory | Cargo convoy interrupted 15388 | -5/Factory | Found Prototype Device 15388 | -5/Factory | Identified Adv. Kinecellerator 15403 | -5/Factory | Found Prototype Processor 15486 | -5/Factory | Identified Exp. Core Analyzer 15534 | -5/Factory | Found Adv. Kinecellerator 15599 | -5/Factory | Entered Upper Caves 15602 | -5/Upper Caves | A Derelict revealed a hidden shortcut to "reach the base" 15652 | -5/Upper Caves | Encountered a Warlord checkpoint 15657 | -5/Upper Caves | Entered an active Warlord outpost 15658 | -5/Upper Caves | Build established: Gladiator 15664 | -5/Upper Caves | Learned Factory emergency access door positions 15664 | -5/Upper Caves | Learned Factory stockpile data 15664 | -5/Upper Caves | Learned Armory stockpile data 15664 | -5/Upper Caves | Learned Armory security intel 15664 | -5/Upper Caves | Learned Research garrison access intel 15785 | -5/Upper Caves | Learned 4 Factory zone layouts 15934 | -5/Upper Caves | Discovered new exit (range 15) 16078 | -5/Upper Caves | Entered another Upper Caves area 16083 | -5/Upper Caves | Attracted the attention of an 0b10 checkpoint 16214 | -5/Upper Caves | Discovered new exit (range 5) 16266 | -5/Upper Caves | Found Alien Artifact 16353 | -5/Upper Caves | Encountered a Warlord checkpoint 16356 | -5/Upper Caves | Learned Factory terminal intel 16401 | -5/Upper Caves | Attracted the attention of an 0b10 base 16440 | -5/Upper Caves | Learned Factory garrison access intel 16440 | -5/Upper Caves | Learned Extension security intel 16440 | -5/Upper Caves | Learned 6 Proximity Caves zone layouts 16485 | -5/Upper Caves | Entered a destroyed Warlord outpost 16525 | -5/Upper Caves | Discovered new exit (range 8) 16841 | -5/Upper Caves | Entered Warlord 16859 | -5/Warlord | System corruption cleaned by Quarantine Array 16904 | -5/Warlord | Learned Armory trap positions 16904 | -5/Warlord | Learned 4 Armory zone layouts 16904 | -5/Warlord | Learned 4 Command zone layouts 16905 | -5/Warlord | Learned Research garrison access intel 16967 | -5/Warlord | Found Prototype Special Weapon 16968 | -5/Warlord | Identified RU-N14's Throwing Claymores v3 16975 | -5/Warlord | Met Warlord 17000 | -5/Warlord | Warlord's base attacked by MAIN.C 17035 | -5/Warlord | Found Prototype Processor 17035 | -5/Warlord | Identified Exp. Target Analyzer 17038 | -5/Warlord | Found Prototype Device 17038 | -5/Warlord | Identified Exp. Focal Shield 17041 | -5/Warlord | Found Prototype Device 17041 | -5/Warlord | Identified Exp. Cloaking Device 17059 | -5/Warlord | Found Prototype Reactor 17119 | -5/Warlord | Found Prototype Piercing Weapon 17119 | -5/Warlord | Identified Vortex Lance 17123 | -5/Warlord | Found Prototype Energy Gun 17123 | -5/Warlord | Identified Vortex Rail 17131 | -5/Warlord | Found Vortex Lance 17289 | -5/Warlord | Lost 4 allies 17327 | -5/Warlord | Warlord forces counterattacked 17374 | -5/Warlord | Spotted Striker 17374 | -5/Warlord | Spotted Striker 17405 | -5/Warlord | Spotted Striker 17409 | -5/Warlord | Spotted Executioner 17471 | -5/Warlord | Spotted Striker 17518 | -5/Warlord | Lost 23 allies 17630 | -5/Warlord | Spotted Executioner 17641 | -5/Warlord | Spotted Striker 17675 | -5/Warlord | Warlord base infiltrated, sounded retreat 17690 | -5/Warlord | Spotted Executioner 17716 | -5/Warlord | Lost 5 allies 17749 | -5/Warlord | Spotted Executioner 17749 | -5/Warlord | Spotted Executioner 17785 | -5/Warlord | Spotted Striker 17809 | -5/Warlord | Spotted B-86 Titan 17819 | -5/Warlord | Lost 5 allies 17833 | -5/Warlord | Spotted Executioner 17834 | -5/Warlord | Spotted B-75 Beast 17841 | -5/Warlord | Destroyed Executioner 17883 | -5/Warlord | Discovered new exit (range 14) 17890 | -5/Warlord | Lost 4 allies 17891 | -5/Warlord | Entered Proximity Caves 17892 | -4/Proximity Caves | Identified exit to Factory 17940 | -4/Proximity Caves | Lost 3 parts (1n2u) 18250 | -4/Proximity Caves | Entered Factory 18250 | -4/Factory | Evolved 2 slots: Power x1, Propulsion x1 18251 | -4/Factory | Identified exit to Research 18255 | -4/Factory | Loaded intel: 26 terminal locations 18256 | -4/Factory | Loaded intel: 4 garrison access locations 18264 | -4/Factory | Central database locked down 18264 | -4/Factory | Identified Dimensional Node Initializer 18335 | -4/Factory | Unchained authorized (BL-1NK) 18375 | -4/Factory | Exiles provided nearest exit location to -4/Upper Caves 18585 | -4/Factory | Destroyed BL-1NK 18594 | -4/Factory | Found Unknown Processor 18594 | -4/Factory | Identified ID Mask 18594 | -4/Factory | ID Mask engaged 18740 | -4/Factory | Build established: Scavenger-Gladiator 18778 | -4/Factory | ID Mask no longer valid 18921 | -4/Factory | Identified Vortex Chain Reactor 19082 | -4/Factory | Discovered exit to Upper Caves (range 7) 19099 | -4/Factory | Identified exit to Armory 19119 | -4/Factory | Manually triggered Chute Trap 19119 | -4/Factory | Sucked down chute 19119 | -4/Factory | Entered Waste 19121 | -4/Waste | Found Prototype Launcher 19121 | -4/Waste | Identified Hellfire Missile Launcher 19134 | -4/Waste | EMP discharged 19134 | -4/Waste | System corruption reached 10% 19135 | -4/Waste | Spotted C-40 Crusher 19141 | -4/Waste | Spotted C-40 Crusher 19141 | -4/Waste | Spotted C-40 Crusher 19162 | -4/Waste | Spotted C-40 Crusher 19162 | -4/Waste | Spotted C-40 Crusher 19163 | -4/Waste | Spotted C-40 Crusher 19209 | -4/Waste | Discovered new exit (range 12) 19219 | -4/Waste | Entered Factory 19468 | -4/Factory | Identified exit to Garrison 19468 | -4/Factory | Entered Garrison 19533 | -4/Garrison | Garrison Relay disabled 19652 | -4/Garrison | Spotted B-86 Titan 19756 | -4/Garrison | Destroyed B-86 Titan 19781 | -4/Garrison | Lost 7 parts (1p4n2u) 19892 | -4/Garrison | Triggered checkpoint 19954 | -4/Garrison | Triggered checkpoint 19955 | -4/Garrison | Core integrity fell below 50% 19970 | -4/Garrison | Discovered new exit (range 5) 19985 | -4/Garrison | Lost 3 parts (1p2u) 20049 | -4/Garrison | Discovered exit to Research (range 12) 20076 | -4/Garrison | Triggered checkpoint 20122 | -4/Garrison | Garrison Relay disabled 20124 | -4/Garrison | Lost 3 parts (2n1u) 20134 | -4/Garrison | Garrison Relay disabled 20196 | -4/Garrison | Triggered checkpoint 20260 | -4/Garrison | Discovered exit to Research (range 12) 20331 | -4/Garrison | Garrison Relay disabled 20336 | -4/Garrison | Triggered checkpoint 20347 | -4/Garrison | P-70 Sage assimilated allied Veteran 7c 20412 | -4/Garrison | Lost 3 parts (1p2n) 20526 | -4/Garrison | Entered Factory 20542 | -4/Factory | Discovered exit to Upper Caves (range 20) 20818 | -4/Factory | Fabricated Imp. System Restoration Module? 20846 | -4/Factory | Core integrity fell below 20% 20937 | -4/Factory | Found Prototype Processor 20937 | -4/Factory | Identified Exp. Signal Interpreter 21399 | -4/Factory | Central database locked down 21442 | -4/Factory | Discovered exit to Research (range 17) 21576 | -4/Factory | Entered Research 21576 | -3/Research | Evolved 2 slots: Propulsion x1, Utility x1 21577 | -3/Research | Loaded intel: 4 garrison access locations 21711 | -3/Research | Spotted B-86 Titan 22026 | -3/Research | Spotted B-86 Titan 22039 | -3/Research | Identified exit to Garrison 22041 | -3/Research | Discovered new exit (range 22) 22043 | -3/Research | Entered Garrison 22081 | -3/Garrison | Lost 5 parts (3n2u) 22105 | -3/Garrison | Found Adv. Force Booster 22290 | -3/Garrison | Lost 8 parts (1p4n2u1w) 22559 | -3/Garrison | Found Adv. Force Booster 22599 | -3/Garrison | Spotted B-86 Titan 22624 | -3/Garrison | Destroyed B-86 Titan 22665 | -3/Garrison | Triggered checkpoint 22753 | -3/Garrison | Lost 6 parts (3n1u2w) 22944 | -3/Garrison | Triggered checkpoint 23089 | -3/Garrison | Triggered checkpoint 23178 | -3/Garrison | Lost 4 parts (3n1w) 23193 | -3/Garrison | Found Adv. Force Booster 23223 | -3/Garrison | Build established: Scavenger-Mutant 23274 | -3/Garrison | Garrison Relay disabled 23308 | -3/Garrison | Discovered new exit (range 13) 23334 | -3/Garrison | Found Adv. Powered Armor 23335 | -3/Garrison | Found Adv. Powered Armor 23377 | -3/Garrison | Core integrity fell below 50% 23553 | -3/Garrison | Triggered checkpoint 23554 | -3/Garrison | Garrison Relay disabled 23565 | -3/Garrison | Discovered new exit (range 5) 23578 | -3/Garrison | Spotted B-86 Titan 23652 | -3/Garrison | Discovered new exit (range 12) 23676 | -3/Garrison | Garrison Relay disabled 23679 | -3/Garrison | Triggered checkpoint 23681 | -3/Garrison | Triggered checkpoint 23684 | -3/Garrison | Entered Research 23684 | -3/Research | Accompanied by 2 allies 23685 | -3/Research | Loaded intel: 4 garrison access locations 23889 | -3/Research | Found Unknown Launcher 23889 | -3/Research | Identified Fusion Bomb Launcher 23992 | -3/Research | Build established: Scavenger-Ninja 24101 | -3/Research | Discovered new exit (range 10) 24142 | -3/Research | Identified exit to Garrison 24142 | -3/Research | Entered Garrison 24248 | -3/Garrison | Core integrity fell below 20% 24284 | -3/Garrison | Lost 5 parts (1p4n) 24352 | -3/Garrison | Spotted B-86 Titan 24367 | -3/Garrison | Triggered checkpoint 24374 | -3/Garrison | Destroyed B-86 Titan 24375 | -3/Garrison | Destroyed by H-77 Assassin with Coil Gun Last Messages --------------- 24355_ Vortex penetrates Reinforced Barrier. 24357_ Penetrated by Slug. 24361_ The unstable cave ceiling collapses. 24361_ Y-72 Warden destroyed. 24365_ The unstable cave ceiling collapses. 24367_ Vortex penetrates B-86 Titan. 24367_ Vortex penetrates Wall. 24367_ Garrison Door breached. 24367_ Beams of light sweep through the air. An alarm sounds. 24369_ Slug penetrates Reinforced Barrier. 24370_ The unstable cave ceiling collapses. 24371_ Vortex penetrates B-86 Titan. 24372_ Slug penetrates Wall. 24372_ Penetrated by Slug. 24372_ Core Analyzer destroyed. 24374_ The unstable cave ceiling collapses. 24374_ Vortex penetrates B-86 Titan. 24374_ B-86 Titan destroyed. 24375_ Penetrated by Slug. Map ----- +----------------------------------------------------+ | ?????????????????????????????????????????????????? | | ?????????????????????????????????????????????????? | | ?????????????????????????????????????????????????? | | ?????????????????????????????????????????????????? | | ?????????????????????????????????????????????????? | | ?????????????????????????????????????????????????? | | ?????????????????????????????????????????????????? | | ?????????????????????????????????????????????????? | | ?????????????????????????????????????????????????? | | ?????????????????????????????????????????????????? | | ?????????????????????????????????????????????????? | | ?????????????????????????????????????????????????? | | ?????????????????????????????????????????????????? | | ?????????????????????????????????????????????????? | | ?????????????????????????????????????????????????? | | ?????????????????????????????????????????????????? | | ?????????????????????????????????????????????????? | | ?????????????????????????????????????????????????? | | ?????????????????????????????????????????????????? | | ?????????????????????##????????????????#####?????? | | ???????????????????### ##??????????????# # ##?### | | ???????? ????????# ???????????????# # ### # | | ??????? ?????# #####???????????# # ## # | | ???????# ### #????????????# # | | ???????# = h h #;##############" "" "# | | ?????? @ ! " | | ?????? ^ [ %% [" | | ?????? ^^ Y Y ###;###########""[ = # | | ???????# # # ????????????#####% # | | ????????????# ####???????????????#! # | | ????????????# ## #??????????????????#% # | | ????????????## # # #### #??????????????????# [# | | ????????????# ?##?#???#; #??????????????????# # | | ????????????#??????????## #??????????????????# # | | ????????????????????????# #??????????????????# # | | ???????????????????????## #??????????????????# # | | ?????????????????g?????#" #??????????????????# # | | ?????????????????g?????## #??????????????????# # | | ?????????????????g??????# #??????????????????# # | | ???????????????????????## #??????????????????# # | | ???????????????????????#" #??????????????????# # | | ???????????????????????## #??????????????????# # | | ????????????????????????# #????????###???????# # | | ???????????????????????## #???????##"##??????# # | | ???????????????????????#" #???????# #?###??# # | | ???????????????????????## ######### ###"####"## | | ????????????????????????# # | | ????????????????????????# # | | ????????????????????????####################### # | | ??????????????????????????????????????????????# # | +----------------------------------------------------+ Best States ------------- Heat Dissipation 160 Coolant Potential 80 Energy Generation 55 Energy Capacity 1150 Matter Stores 300 Matter Capacity 300 Sight Range 22 Robot Scan Range 18 Terrain Scan Range 24 Terrain Scan Density 110 Jamming Range 12 Cloak Strength 4 Power Amplification 30 EM Shielding 3 Corruption Containment 8 Corruption Block 15 Armor Coverage 1200 Resistance: KI 30 Resistance: EM 20 Core Shielding 30 Propulsion Shielding 66 Melee Speed Boost 50 Phase Shifting 15 Evasion (%) 71 Targeting Accuracy 12 Melee Accuracy 8 Target Analysis 10 Core Analysis 11 Kinecelleration 50 Force Boost 40 Offensive Hacking 30 Defensive Hacking 26 Authchip Count 1 Trap Extractor Capacity 8 Item Schematics ----------------- Hacking Suite | -9/Materials | Scanalyzed Imp. VTOL Module | -9/Materials | Scanalyzed Utility Shielding | -9/Materials | Extracted Welding Torch | -9/Materials | Extracted Aerolev Unit | -8/Materials | Scanalyzed Cesium-ion Thruster | -8/Materials | Scanalyzed Core Analyzer | -7/Factory | Hacked Adv. KE Penetrator | -7/Factory | Scanalyzed System Restoration Module | -7/Factory | Hacked Field Propulsion Drive | -7/Factory | Hacked Hvy. Gatling Laser | -7/Factory | Scanalyzed Imp. System Restoration Module | -4/Factory | Scanalyzed Robot Schematics ------------------ None Fabricated ------------ Imp. VTOL Module | x1 | -7/Factory Aerolev Unit | x1 | -7/Factory System Restoration Module | x2 | -7/Factory Adv. KE Penetrator | x1 | -7/Factory System Restoration Module | x2 | -6/Factory Imp. System Restoration Module | x2 | -4/Factory Repaired ---------- Autogun | 44% | -9/Materials Hrd. Medium Armor Plating | 59% | -8/Materials Studied --------- Wheel | -9/Materials | Hacked Com. Wheel | -9/Materials | Hacked Rocket Launcher | -9/Materials | Hacked Autogun | -9/Materials | Hacked Cesium-ion Thruster | -8/Materials | Hacked Mic. Nuclear Core | -7/Factory | Hacked Hvy. Flail | -7/Factory | Hacked Hvy. Missile Launcher | -7/Factory | Hacked Gravmag Array | -6/Factory | Hacked Lrn. Missile Launcher | -6/Factory | Hacked Cmb. Airjet | -6/Factory | Hacked Imp. Gravmag System | -5/Factory | Hacked Mic. Fission Core | -4/Factory | Hacked Antigrav System | -4/Factory | Hacked Alien Tech Used ----------------- None Achievements -------------- None Challenges ------------ None Game ------ Seed MinesnifferStormAmplifier Manual? 0 Play Time 07:06:50 Cumulative 631.1 hours Start 2026.03.13 @ 23:49:01 End 2026.03.15 @ 20:13:54 Sessions 9 Manual Loads 0 Difficulty Rogue Special Mode None Game No. 202 Rogue 202 Adventurer 0 Explorer 0 Win Type - Total 22 Types 8/1/6/1/1/0/1/1/1/2 Lore% 92 Gallery% 86 Achievement% 78 Wizard Run 0 Options --------- Layout 1 ASCII 0 Keyboard 0 Movement Mouse Keybinds 0 Fullscreen 2 Font 32/SmallcapsGlow Map View 50x35 Zoom Use 0% Tactical HUD 1 Map Filters NONE Filters NONE Steam 1 RUN: c743efa5-940a-476f-bbef-961e00efb865